{"text_format":"1","workbook":"xlsx","n_sheets":5,"sheets":["vysledky-vystupy","ukazatele_28-30_33-34_39","ukazatele_44-51","ukazatele_53-55","spolecne_ukazatele"],"not_rendered":{"charts":0,"images":1,"macros":1,"external_links":0,"defined_names":0,"comments":0,"pivot_tables":0},"unopened":[],"bounds":{"document_bytes":16777216,"sheet_cells":100000,"rows_first":2000,"rows_last":500,"rows_between":2000,"halvings":0,"cell_chars":16384,"cell_head_chars":4096},"cells_cut":0,"cells_raw":0,"read":"whole","date_system":"1900"}

{"sheet":"vysledky-vystupy","index":0,"n_rows":9,"n_cols":39,"rows_kept":9,"cut":false,"hidden":false,"merged":[[7,32,8,32],[7,33,8,33],[2,0,2,2],[1,0,1,2],[0,0,0,1],[7,19,8,19],[7,4,7,7],[7,0,8,0],[7,1,8,1],[7,2,8,2],[7,3,8,3],[7,8,7,9],[7,10,7,13],[7,14,7,15],[5,0,5,34],[7,34,8,34],[7,30,7,31],[7,20,8,20],[7,21,8,21],[7,16,7,17],[7,28,7,29],[7,23,7,25],[7,26,7,27],[7,22,8,22],[7,18,8,18]]}
["Ministerstvo školství, mládeže a tělovýchovy  "]
["Program LX-PZP-2023: příloha 1 - Výsledky a výstupy "]
[]
[]
["LX22NPO510x"]
["Výsledky a výstupy projektu"]
["(* zařazení práce do kategorie \"studentská\" znamená, že tato práce, byť by se jednalo o publikační výstup, nebude považována za relevantní pro stanovení celkového počtu publikačních výstupů pro posouzení splnění prahové podmínky dle čl. 11.2. písm. d) ZD)  "]
["Typ výsledku/výstupu (dle IS VaVaI a ukazatele č. 18; u oponované studentské práce uveďte typ práce)","Přiřazení k projektové aktivitě","Název","Rok vydání (rrrr)","Autor/autoři",null,null,null,"Publikační výsledky:",null,"OA pokud relevantní dle druhu výsledku:",null,null,null,"Nový výsledek projektu vytvořený v rámci výzkumné spolupráce s využitím tuzemské velké výzkumné infrastruktury uvedené v Cestovní mapě ČR, u kterého je přiznáno spoluautorství alespoň jednomu z členů řešitelského týmu (č. 13)",null,"Nový výsledek projektu vytvořený v rámci jiné výzkumné spolupráce se subjekty mimo konsorciální projekt, který nebyl započten do ukazatele č. 13 a u kterého je přiznáno spoluautorství alespoň jednomu z členů řešitelského týmu konsorciálního projektu (č. 14)",null,"Nový výsledek projektu, jehož autory jsou výhradně podpoření členové řešitelského týmu tohoto projektu (č. 15)","Patent členů řešitelského týmu registrovaný podle PCT (č. 16)","Jiné projektové výsledky a výstupy aplikovaného výzkumu než patent podle č. 16 (jen druhy podle IS VaVaI - č. 17)","Výsledek/výstup zaměřený na prezentaci genderového hlediska prováděného výzkumu (č. 19)","Výsledek/výstup zaměřený na posílení relevance, resp. doplnění stávajícího poznání zohledněním genderového hlediska (č. 20)","Výsledek/výstup se spolu-/autorstvím zahraničního odborníka (č. 31)",null,null,"Výsledek/výstup projektu z meziregionální spolupráce (č. 32)",null,"Výsledek/výstup poskytnut OVM v rámci odborné a informační podpory (č. 51)",null,"Výsledky a výstupy projektu, které by nebylo možné realizovat bez modernizace a renovace výzkumných kapacit, zařízení a informačních a digitalizační infrastruktury v daném období (č. 56)",null,"Zkratka názvu účastníka projektu (nepovinné pole)","Pořadové číslo výsledku/výstupu (nepovinné pole)","Započítán do prahových podmínek úspěšnosti?"]
[null,null,null,null,"Jméno a příjmení","Podíl členů řešitelského týmu\n(%)","Součástí autorského týmu/autorka je členka řešitelského týmu","Součástí autorského týmu/autorem je juniorní člen řešitelského týmu"," Kvalita*","Počet citací","Je OA?","Identifikátor DOI (případně jiný identifikátor nebo trvalá URL adresa) místa zveřejnění/publikování","Trvalá URL adresa uložení v repozitáři (příp. identifikátor DOI, či jiný)","Typ licence CC popsaný zkratkou (při negativní odpovědi uvést odůvodnění do plánu pro správu dat)","ano/ne","Pokud je ve sloupci O \"ano\", identifikujte tuto VVI (ID nebo dle seznamu v tabulce č. 44)","ano/ne","Pokud je ve sloupci Q \"ano\", uveďte název/identifikaci spolupráce dle seznamu k ukazateli č. 45",null,null,null,null,null,"ano/ne","Počet zahraničních odborníků podílejících se na výsledku/výstupu","Počet tuzemských odborníků podílejících se na výsledku/výstupu","ano/ne","Spolupracující subjekty nebo identifikace spolupráce dle seznamu v tabulkách č. 45-49 ","ano/ne","Identifikace OVM","ano/ne","Odůvodnění nebo odkaz na příslušnou modernizaci/renovaci dle seznamu v tabulkách č. 52-55",null,null,null,null,null,null,"Poznámky poskytovatele"]

{"sheet":"ukazatele_28-30_33-34_39","index":1,"n_rows":5032,"n_cols":22,"rows_kept":5032,"cut":false,"hidden":false,"merged":[[0,0,0,1],[1,0,1,2],[2,0,2,3],[3020,0,3020,8],[4025,0,4025,10],[5030,0,5030,19],[5,0,5,21],[1010,0,1010,10],[2015,0,2015,8]]}
["Ministerstvo školství, mládeže a tělovýchovy  "]
["Program LX-PZP-2023: příloha 1 - Ukazatele 28-30, 33, 34 a 39"]
[]
[]
["LX22NPO510x"]
["(č. 28) Projekty mezinárodní spolupráce ve VaVaI členů řešitelského týmu, které byly/jsou financovány ze zahraničních zdrojů a zahájeny v hodnoceném období"]
["Název projektu v jazyce podání","Podání (mm.rrrr)","Přijetí (mm.rrrr, v případě, že projekt ještě nebyl přijat '0')","ID projektu","Prestižní projekt (ERC, NSF, Seal of Excellence) ve VaVaI","Hodnocení","Vazba na PA","Poskytovatel podpory ","Začátek řešení (mm.rrrr)","Předpokládaný konec řešení (mm.rrrr)","Příjemce podpory (příjemce/další účastník, který projekt realizuje)","Řešitel (příjmení, jméno)","Pohlaví","ORCID (Reseacher's ID)","Počet dalších členů řešitelského týmu projektu LX zapojených do podaného/přijatého projektu","Z toho počet žen","Uznané náklady příjemce celkem (částka)","Měna","Z toho  podpora poskytnutá příjemci (částka)","Měna","Aktivní odkaz na projekt (do veřejně přístupné DB nebo na internet. stránku prokazující jeho existenci)","Zkratka názvu účastníka projektu (nepovinné pole)"]
[]
[]
[]
[]
[]
[]
[]
[]
[]
[]
[]
[]
[]
[]
[]
[]
[]
[]
[]
[]
[]
[]
[]
[]
[]
[]
[]
[]
[]
[]
[]
[]
[]
[]
[]
[]
[]
[]
[]
[]
[]
[]
[]
[]
[]
[]
[]
[]
[]
[]
[]
[]
[]
[]
[]
[]
[]
[]
[]
[]
[]
[]
[]
[]
[]
[]
[]
[]
[]
[]
[]
[]
[]
[]
[]
[]
[]
[]
[]
[]
[]
[]
[]
[]
[]
[]
[]
[]
[]
[]
[]
[]
[]
[]
[]
[]
[]
[]
[]
[]
[]
[]
[]
[]
[]
[]
[]
[]
[]
[]
[]
[]
[]
[]
[]
[]
[]
[]
[]
[]
[]
[]
[]
[]
[]
[]
[]
[]
[]
[]
[]
[]
[]
[]
[]
[]
[]
[]
[]
[]
[]
[]
[]
[]
[]
[]
[]
[]
[]
[]
[]
[]
[]
[]
[]
[]
[]
[]
[]
[]
[]
[]
[]
[]
[]
[]
[]
[]
[]
[]
[]
[]
[]
[]
[]
[]
[]
[]
[]
[]
[]
[]
[]
[]
[]
[]
[]
[]
[]
[]
[]
[]
[]
[]
[]
[]
[]
[]
[]
[]
[]
[]
[]
[]
[]
[]
[]
[]
[]
[]
[]
[]
[]
[]
[]
[]
[]
[]
[]
[]
[]
[]
[]
[]
[]
[]
[]
[]
[]
[]
[]
[]
[]
[]
[]
[]
[]
[]
[]
[]
[]
[]
[]
[]
[]
[]
[]
[]
[]
[]
[]
[]
[]
[]
[]
[]
[]
[]
[]
[]
[]
[]
[]
[]
[]
[]
[]
[]
[]
[]
[]
[]
[]
[]
[]
[]
[]
[]
[]
[]
[]
[]
[]
[]
[]
[]
[]
[]
[]
[]
[]
[]
[]
[]
[]
[]
[]
[]
[]
[]
[]
[]
[]
[]
[]
[]
[]
[]
[]
[]
[]
[]
[]
[]
[]
[]
[]
[]
[]
[]
[]
[]
[]
[]
[]
[]
[]
[]
[]
[]
[]
[]
[]
[]
[]
[]
[]
[]
[]
[]
[]
[]
[]
[]
[]
[]
[]
[]
[]
[]
[]
[]
[]
[]
[]
[]
[]
[]
[]
[]
[]
[]
[]
[]
[]
[]
[]
[]
[]
[]
[]
[]
[]
[]
[]
[]
[]
[]
[]
[]
[]
[]
[]
[]
[]
[]
[]
[]
[]
[]
[]
[]
[]
[]
[]
[]
[]
[]
[]
[]
[]
[]
[]
[]
[]
[]
[]
[]
[]
[]
[]
[]
[]
[]
[]
[]
[]
[]
[]
[]
[]
[]
[]
[]
[]
[]
[]
[]
[]
[]
[]
[]
[]
[]
[]
[]
[]
[]
[]
[]
[]
[]
[]
[]
[]
[]
[]
[]
[]
[]
[]
[]
[]
[]
[]
[]
[]
[]
[]
[]
[]
[]
[]
[]
[]
[]
[]
[]
[]
[]
[]
[]
[]
[]
[]
[]
[]
[]
[]
[]
[]
[]
[]
[]
[]
[]
[]
[]
[]
[]
[]
[]
[]
[]
[]
[]
[]
[]
[]
[]
[]
[]
[]
[]
[]
[]
[]
[]
[]
[]
[]
[]
[]
[]
[]
[]
[]
[]
[]
[]
[]
[]
[]
[]
[]
[]
[]
[]
[]
[]
[]
[]
[]
[]
[]
[]
[]
[]
[]
[]
[]
[]
[]
[]
[]
[]
[]
[]
[]
[]
[]
[]
[]
[]
[]
[]
[]
[]
[]
[]
[]
[]
[]
[]
[]
[]
[]
[]
[]
[]
[]
[]
[]
[]
[]
[]
[]
[]
[]
[]
[]
[]
[]
[]
[]
[]
[]
[]
[]
[]
[]
[]
[]
[]
[]
[]
[]
[]
[]
[]
[]
[]
[]
[]
[]
[]
[]
[]
[]
[]
[]
[]
[]
[]
[]
[]
[]
[]
[]
[]
[]
[]
[]
[]
[]
[]
[]
[]
[]
[]
[]
[]
[]
[]
[]
[]
[]
[]
[]
[]
[]
[]
[]
[]
[]
[]
[]
[]
[]
[]
[]
[]
[]
[]
[]
[]
[]
[]
[]
[]
[]
[]
[]
[]
[]
[]
[]
[]
[]
[]
[]
[]
[]
[]
[]
[]
[]
[]
[]
[]
[]
[]
[]
[]
[]
[]
[]
[]
[]
[]
[]
[]
[]
[]
[]
[]
[]
[]
[]
[]
[]
[]
[]
[]
[]
[]
[]
[]
[]
[]
[]
[]
[]
[]
[]
[]
[]
[]
[]
[]
[]
[]
[]
[]
[]
[]
[]
[]
[]
[]
[]
[]
[]
[]
[]
[]
[]
[]
[]
[]
[]
[]
[]
[]
[]
[]
[]
[]
[]
[]
[]
[]
[]
[]
[]
[]
[]
[]
[]
[]
[]
[]
[]
[]
[]
[]
[]
[]
[]
[]
[]
[]
[]
[]
[]
[]
[]
[]
[]
[]
[]
[]
[]
[]
[]
[]
[]
[]
[]
[]
[]
[]
[]
[]
[]
[]
[]
[]
[]
[]
[]
[]
[]
[]
[]
[]
[]
[]
[]
[]
[]
[]
[]
[]
[]
[]
[]
[]
[]
[]
[]
[]
[]
[]
[]
[]
[]
[]
[]
[]
[]
[]
[]
[]
[]
[]
[]
[]
[]
[]
[]
[]
[]
[]
[]
[]
[]
[]
[]
[]
[]
[]
[]
[]
[]
[]
[]
[]
[]
[]
[]
[]
[]
[]
[]
[]
[]
[]
[]
[]
[]
[]
[]
[]
[]
[]
[]
[]
[]
[]
[]
[]
[]
[]
[]
[]
[]
[]
[]
[]
[]
[]
[]
[]
[]
[]
[]
[]
[]
[]
[]
[]
[]
[]
[]
[]
[]
[]
[]
[]
[]
[]
[]
[]
[]
[]
[]
[]
[]
[]
[]
[]
[]
[]
[]
[]
[]
[]
[]
[]
[]
[]
[]
[]
[]
[]
[]
[]
[]
[]
[]
[]
[]
[]
[]
[]
[]
[]
[]
[]
[]
[]
[]
[]
[]
[]
[]
[]
[]
[]
[]
[]
[]
[]
[]
[]
[]
[]
[]
[]
[]
[]
[]
[]
[]
[]
[]
[]
[]
[]
[]
[]
[]
[]
[]
[]
[]
[]
[]
[]
[]
[]
[]
[]
[]
[]
[]
[]
[]
[]
[]
[]
[]
["(č. 29) Finanční prostředky ze zahraničí získané příjemcem/dalším účastníkem projektu z mezinárodní spolupráce se zahraničím díky aktivitě člena řešitelského týmu  v hodnoceném období "]
["Typ spolupráce","ID projektu, je-li releventní dle typu spolupráce","Vazba na PA","Zahájení řešení (mm.rrrrr)","Ukončení řešení (mm.rrrr)","Příjemce fin. prostředků","Výše skutečně získaných finančních prostředků (částka)","Měna","Spolupracující subjekty ze zahraničí","Způsob doložení, nelze-li identifikovat pomocí ID","Zkratka názvu účastníka projektu (nepovinné pole)"]
[]
[]
[]
[]
[]
[]
[]
[]
[]
[]
[]
[]
[]
[]
[]
[]
[]
[]
[]
[]
[]
[]
[]
[]
[]
[]
[]
[]
[]
[]
[]
[]
[]
[]
[]
[]
[]
[]
[]
[]
[]
[]
[]
[]
[]
[]
[]
[]
[]
[]
[]
[]
[]
[]
[]
[]
[]
[]
[]
[]
[]
[]
[]
[]
[]
[]
[]
[]
[]
[]
[]
[]
[]
[]
[]
[]
[]
[]
[]
[]
[]
[]
[]
[]
[]
[]
[]
[]
[]
[]
[]
[]
[]
[]
[]
[]
[]
[]
[]
[]
[]
[]
[]
[]
[]
[]
[]
[]
[]
[]
[]
[]
[]
[]
[]
[]
[]
[]
[]
[]
[]
[]
[]
[]
[]
[]
[]
[]
[]
[]
[]
[]
[]
[]
[]
[]
[]
[]
[]
[]
[]
[]
[]
[]
[]
[]
[]
[]
[]
[]
[]
[]
[]
[]
[]
[]
[]
[]
[]
[]
[]
[]
[]
[]
[]
[]
[]
[]
[]
[]
[]
[]
[]
[]
[]
[]
[]
[]
[]
[]
[]
[]
[]
[]
[]
[]
[]
[]
[]
[]
[]
[]
[]
[]
[]
[]
[]
[]
[]
[]
[]
[]
[]
[]
[]
[]
[]
[]
[]
[]
[]
[]
[]
[]
[]
[]
[]
[]
[]
[]
[]
[]
[]
[]
[]
[]
[]
[]
[]
[]
[]
[]
[]
[]
[]
[]
[]
[]
[]
[]
[]
[]
[]
[]
[]
[]
[]
[]
[]
[]
[]
[]
[]
[]
[]
[]
[]
[]
[]
[]
[]
[]
[]
[]
[]
[]
[]
[]
[]
[]
[]
[]
[]
[]
[]
[]
[]
[]
[]
[]
[]
[]
[]
[]
[]
[]
[]
[]
[]
[]
[]
[]
[]
[]
[]
[]
[]
[]
[]
[]
[]
[]
[]
[]
[]
[]
[]
[]
[]
[]
[]
[]
[]
[]
[]
[]
[]
[]
[]
[]
[]
[]
[]
[]
[]
[]
[]
[]
[]
[]
[]
[]
[]
[]
[]
[]
[]
[]
[]
[]
[]
[]
[]
[]
[]
[]
[]
[]
[]
[]
[]
[]
[]
[]
[]
[]
[]
[]
[]
[]
[]
[]
[]
[]
[]
[]
[]
[]
[]
[]
[]
[]
[]
[]
[]
[]
[]
[]
[]
[]
[]
[]
[]
[]
[]
[]
[]
[]
[]
[]
[]
[]
[]
[]
[]
[]
[]
[]
[]
[]
[]
[]
[]
[]
[]
[]
[]
[]
[]
[]
[]
[]
[]
[]
[]
[]
[]
[]
[]
[]
[]
[]
[]
[]
[]
[]
[]
[]
[]
[]
[]
[]
[]
[]
[]
[]
[]
[]
[]
[]
[]
[]
[]
[]
[]
[]
[]
[]
[]
[]
[]
[]
[]
[]
[]
[]
[]
[]
[]
[]
[]
[]
[]
[]
[]
[]
[]
[]
[]
[]
[]
[]
[]
[]
[]
[]
[]
[]
[]
[]
[]
[]
[]
[]
[]
[]
[]
[]
[]
[]
[]
[]
[]
[]
[]
[]
[]
[]
[]
[]
[]
[]
[]
[]
[]
[]
[]
[]
[]
[]
[]
[]
[]
[]
[]
[]
[]
[]
[]
[]
[]
[]
[]
[]
[]
[]
[]
[]
[]
[]
[]
[]
[]
[]
[]
[]
[]
[]
[]
[]
[]
[]
[]
[]
[]
[]
[]
[]
[]
[]
[]
[]
[]
[]
[]
[]
[]
[]
[]
[]
[]
[]
[]
[]
[]
[]
[]
[]
[]
[]
[]
[]
[]
[]
[]
[]
[]
[]
[]
[]
[]
[]
[]
[]
[]
[]
[]
[]
[]
[]
[]
[]
[]
[]
[]
[]
[]
[]
[]
[]
[]
[]
[]
[]
[]
[]
[]
[]
[]
[]
[]
[]
[]
[]
[]
[]
[]
[]
[]
[]
[]
[]
[]
[]
[]
[]
[]
[]
[]
[]
[]
[]
[]
[]
[]
[]
[]
[]
[]
[]
[]
[]
[]
[]
[]
[]
[]
[]
[]
[]
[]
[]
[]
[]
[]
[]
[]
[]
[]
[]
[]
[]
[]
[]
[]
[]
[]
[]
[]
[]
[]
[]
[]
[]
[]
[]
[]
[]
[]
[]
[]
[]
[]
[]
[]
[]
[]
[]
[]
[]
[]
[]
[]
[]
[]
[]
[]
[]
[]
[]
[]
[]
[]
[]
[]
[]
[]
[]
[]
[]
[]
[]
[]
[]
[]
[]
[]
[]
[]
[]
[]
[]
[]
[]
[]
[]
[]
[]
[]
[]
[]
[]
[]
[]
[]
[]
[]
[]
[]
[]
[]
[]
[]
[]
[]
[]
[]
[]
[]
[]
[]
[]
[]
[]
[]
[]
[]
[]
[]
[]
[]
[]
[]
[]
[]
[]
[]
[]
[]
[]
[]
[]
[]
[]
[]
[]
[]
[]
[]
[]
[]
[]
[]
[]
[]
[]
[]
[]
[]
[]
[]
[]
[]
[]
[]
[]
[]
[]
[]
[]
[]
[]
[]
[]
[]
[]
[]
[]
[]
[]
[]
[]
[]
[]
[]
[]
[]
[]
[]
[]
[]
[]
[]
[]
[]
[]
[]
[]
[]
[]
[]
[]
[]
[]
[]
[]
[]
[]
[]
[]
[]
[]
[]
[]
[]
[]
[]
[]
[]
[]
[]
[]
[]
[]
[]
[]
[]
[]
[]
[]
[]
[]
[]
[]
[]
[]
[]
[]
[]
[]
[]
[]
[]
[]
[]
[]
[]
[]
[]
[]
[]
[]
[]
[]
[]
[]
[]
[]
[]
[]
[]
[]
[]
[]
[]
[]
[]
[]
[]
[]
[]
[]
[]
[]
[]
[]
[]
[]
[]
[]
[]
[]
[]
[]
[]
[]
[]
[]
[]
[]
[]
[]
[]
[]
[]
[]
[]
[]
[]
[]
[]
[]
[]
[]
[]
[]
[]
[]
[]
[]
[]
[]
[]
[]
[]
[]
[]
[]
[]
[]
[]
[]
[]
[]
[]
[]
[]
[]
[]
[]
[]
[]
[]
[]
[]
[]
[]
[]
[]
[]
[]
[]
[]
[]
[]
[]
[]
[]
[]
[]
[]
[]
[]
[]
[]
[]
[]
[]
[]
[]
[]
[]
[]
[]
[]
[]
[]
[]
[]
[]
[]
[]
[]
["(č. 30)  Udělená ocenění v prioritní oblasti VaVaI v hodnoceném období "]
["Typ ocenění","Úroveň","Nositel","Přiznáno kým","Uděleno komu (vepisujte právě jednu osobu)","Pohlaví","Název ocenění","Organizace (příslušnost oceněné osoby, zkratka)","Zkratka názvu účastníka projektu (nepovinné pole)"]
[]
[]
[]
[]
[]
[]
[]
[]
[]
[]
[]
[]
[]
[]
[]
[]
[]
[]
[]
[]
[]
[]
[]
[]
[]
[]
[]
[]
[]
[]
[]
[]
[]
[]
[]
[]
[]
[]
[]
[]
[]
[]
[]
[]
[]
[]
[]
[]
[]
[]
[]
[]
[]
[]
[]
[]
[]
[]
[]
[]
[]
[]
[]
[]
[]
[]
[]
[]
[]
[]
[]
[]
[]
[]
[]
[]
[]
[]
[]
[]
[]
[]
[]
[]
[]
[]
[]
[]
[]
[]
[]
[]
[]
[]
[]
[]
[]
[]
[]
[]
[]
[]
[]
[]
[]
[]
[]
[]
[]
[]
[]
[]
[]
[]
[]
[]
[]
[]
[]
[]
[]
[]
[]
[]
[]
[]
[]
[]
[]
[]
[]
[]
[]
[]
[]
[]
[]
[]
[]
[]
[]
[]
[]
[]
[]
[]
[]
[]
[]
[]
[]
[]
[]
[]
[]
[]
[]
[]
[]
[]
[]
[]
[]
[]
[]
[]
[]
[]
[]
[]
[]
[]
[]
[]
[]
[]
[]
[]
[]
[]
[]
[]
[]
[]
[]
[]
[]
[]
[]
[]
[]
[]
[]
[]
[]
[]
[]
[]
[]
[]
[]
[]
[]
[]
[]
[]
[]
[]
[]
[]
[]
[]
[]
[]
[]
[]
[]
[]
[]
[]
[]
[]
[]
[]
[]
[]
[]
[]
[]
[]
[]
[]
[]
[]
[]
[]
[]
[]
[]
[]
[]
[]
[]
[]
[]
[]
[]
[]
[]
[]
[]
[]
[]
[]
[]
[]
[]
[]
[]
[]
[]
[]
[]
[]
[]
[]
[]
[]
[]
[]
[]
[]
[]
[]
[]
[]
[]
[]
[]
[]
[]
[]
[]
[]
[]
[]
[]
[]
[]
[]
[]
[]
[]
[]
[]
[]
[]
[]
[]
[]
[]
[]
[]
[]
[]
[]
[]
[]
[]
[]
[]
[]
[]
[]
[]
[]
[]
[]
[]
[]
[]
[]
[]
[]
[]
[]
[]
[]
[]
[]
[]
[]
[]
[]
[]
[]
[]
[]
[]
[]
[]
[]
[]
[]
[]
[]
[]
[]
[]
[]
[]
[]
[]
[]
[]
[]
[]
[]
[]
[]
[]
[]
[]
[]
[]
[]
[]
[]
[]
[]
[]
[]
[]
[]
[]
[]
[]
[]
[]
[]
[]
[]
[]
[]
[]
[]
[]
[]
[]
[]
[]
[]
[]
[]
[]
[]
[]
[]
[]
[]
[]
[]
[]
[]
[]
[]
[]
[]
[]
[]
[]
[]
[]
[]
[]
[]
[]
[]
[]
[]
[]
[]
[]
[]
[]
[]
[]
[]
[]
[]
[]
[]
[]
[]
[]
[]
[]
[]
[]
[]
[]
[]
[]
[]
[]
[]
[]
[]
[]
[]
[]
[]
[]
[]
[]
[]
[]
[]
[]
[]
[]
[]
[]
[]
[]
[]
[]
[]
[]
[]
[]
[]
[]
[]
[]
[]
[]
[]
[]
[]
[]
[]
[]
[]
[]
[]
[]
[]
[]
[]
[]
[]
[]
[]
[]
[]
[]
[]
[]
[]
[]
[]
[]
[]
[]
[]
[]
[]
[]
[]
[]
[]
[]
[]
[]
[]
[]
[]
[]
[]
[]
[]
[]
[]
[]
[]
[]
[]
[]
[]
[]
[]
[]
[]
[]
[]
[]
[]
[]
[]
[]
[]
[]
[]
[]
[]
[]
[]
[]
[]
[]
[]
[]
[]
[]
[]
[]
[]
[]
[]
[]
[]
[]
[]
[]
[]
[]
[]
[]
[]
[]
[]
[]
[]
[]
[]
[]
[]
[]
[]
[]
[]
[]
[]
[]
[]
[]
[]
[]
[]
[]
[]
[]
[]
[]
[]
[]
[]
[]
[]
[]
[]
[]
[]
[]
[]
[]
[]
[]
[]
[]
[]
[]
[]
[]
[]
[]
[]
[]
[]
[]
[]
[]
[]
[]
[]
[]
[]
[]
[]
[]
[]
[]
[]
[]
[]
[]
[]
[]
[]
[]
[]
[]
[]
[]
[]
[]
[]
[]
[]
[]
[]
[]
[]
[]
[]
[]
[]
[]
[]
[]
[]
[]
[]
[]
[]
[]
[]
[]
[]
[]
[]
[]
[]
[]
[]
[]
[]
[]
[]
[]
[]
[]
[]
[]
[]
[]
[]
[]
[]
[]
[]
[]
[]
[]
[]
[]
[]
[]
[]
[]
[]
[]
[]
[]
[]
[]
[]
[]
[]
[]
[]
[]
[]
[]
[]
[]
[]
[]
[]
[]
[]
[]
[]
[]
[]
[]
[]
[]
[]
[]
[]
[]
[]
[]
[]
[]
[]
[]
[]
[]
[]
[]
[]
[]
[]
[]
[]
[]
[]
[]
[]
[]
[]
[]
[]
[]
[]
[]
[]
[]
[]
[]
[]
[]
[]
[]
[]
[]
[]
[]
[]
[]
[]
[]
[]
[]
[]
[]
[]
[]
[]
[]
[]
[]
[]
[]
[]
[]
[]
[]
[]
[]
[]
[]
[]
[]
[]
[]
[]
[]
[]
[]
[]
[]
[]
[]
[]
[]
[]
[]
[]
[]
[]
[]
[]
[]
[]
[]
[]
[]
[]
[]
[]
[]
[]
[]
[]
[]
[]
[]
[]
[]
[]
[]
[]
[]
[]
[]
[]
[]
[]
[]
[]
[]
[]
[]
[]
[]
[]
[]
[]
[]
[]
[]
[]
[]
[]
[]
[]
[]
[]
[]
[]
[]
[]
[]
[]
[]
[]
[]
[]
[]
[]
[]
[]
[]
[]
[]
[]
[]
[]
[]
[]
[]
[]
[]
[]
[]
[]
[]
[]
[]
[]
[]
[]
[]
[]
[]
[]
[]
[]
[]
[]
[]
[]
[]
[]
[]
[]
[]
[]
[]
[]
[]
[]
[]
[]
[]
[]
[]
[]
[]
[]
[]
[]
[]
[]
[]
[]
[]
[]
[]
[]
[]
[]
[]
[]
[]
[]
[]
[]
[]
[]
[]
[]
[]
[]
[]
[]
[]
[]
[]
[]
[]
[]
[]
[]
[]
[]
[]
[]
[]
[]
[]
[]
[]
[]
[]
[]
[]
[]
[]
[]
[]
[]
[]
[]
[]
[]
[]
[]
[]
[]
[]
[]
[]
[]
[]
[]
[]
[]
[]
[]
[]
[]
[]
[]
[]
[]
[]
[]
[]
["(č. 33) Účast zahraničních výzkumníků na projektu s úhrnnou délkou pobytu delší než 3 měsíce v hodnoceném období"]
["Jméno a příjmení","ORCID (Reseacher´s ID)","Kategorie výzkumníka","Vysílající instituce","Délka pobytu (v měsících)","Míra zapojení (počet hodin)","Pohlaví","Vazba na PA","Zkratka názvu účastníka projektu (nepovinné pole)"]
[]
[]
[]
[]
[]
[]
[]
[]
[]
[]
[]
[]
[]
[]
[]
[]
[]
[]
[]
[]
[]
[]
[]
[]
[]
[]
[]
[]
[]
[]
[]
[]
[]
[]
[]
[]
[]
[]
[]
[]
[]
[]
[]
[]
[]
[]
[]
[]
[]
[]
[]
[]
[]
[]
[]
[]
[]
[]
[]
[]
[]
[]
[]
[]
[]
[]
[]
[]
[]
[]
[]
[]
[]
[]
[]
[]
[]
[]
[]
[]
[]
[]
[]
[]
[]
[]
[]
[]
[]
[]
[]
[]
[]
[]
[]
[]
[]
[]
[]
[]
[]
[]
[]
[]
[]
[]
[]
[]
[]
[]
[]
[]
[]
[]
[]
[]
[]
[]
[]
[]
[]
[]
[]
[]
[]
[]
[]
[]
[]
[]
[]
[]
[]
[]
[]
[]
[]
[]
[]
[]
[]
[]
[]
[]
[]
[]
[]
[]
[]
[]
[]
[]
[]
[]
[]
[]
[]
[]
[]
[]
[]
[]
[]
[]
[]
[]
[]
[]
[]
[]
[]
[]
[]
[]
[]
[]
[]
[]
[]
[]
[]
[]
[]
[]
[]
[]
[]
[]
[]
[]
[]
[]
[]
[]
[]
[]
[]
[]
[]
[]
[]
[]
[]
[]
[]
[]
[]
[]
[]
[]
[]
[]
[]
[]
[]
[]
[]
[]
[]
[]
[]
[]
[]
[]
[]
[]
[]
[]
[]
[]
[]
[]
[]
[]
[]
[]
[]
[]
[]
[]
[]
[]
[]
[]
[]
[]
[]
[]
[]
[]
[]
[]
[]
[]
[]
[]
[]
[]
[]
[]
[]
[]
[]
[]
[]
[]
[]
[]
[]
[]
[]
[]
[]
[]
[]
[]
[]
[]
[]
[]
[]
[]
[]
[]
[]
[]
[]
[]
[]
[]
[]
[]
[]
[]
[]
[]
[]
[]
[]
[]
[]
[]
[]
[]
[]
[]
[]
[]
[]
[]
[]
[]
[]
[]
[]
[]
[]
[]
[]
[]
[]
[]
[]
[]
[]
[]
[]
[]
[]
[]
[]
[]
[]
[]
[]
[]
[]
[]
[]
[]
[]
[]
[]
[]
[]
[]
[]
[]
[]
[]
[]
[]
[]
[]
[]
[]
[]
[]
[]
[]
[]
[]
[]
[]
[]
[]
[]
[]
[]
[]
[]
[]
[]
[]
[]
[]
[]
[]
[]
[]
[]
[]
[]
[]
[]
[]
[]
[]
[]
[]
[]
[]
[]
[]
[]
[]
[]
[]
[]
[]
[]
[]
[]
[]
[]
[]
[]
[]
[]
[]
[]
[]
[]
[]
[]
[]
[]
[]
[]
[]
[]
[]
[]
[]
[]
[]
[]
[]
[]
[]
[]
[]
[]
[]
[]
[]
[]
[]
[]
[]
[]
[]
[]
[]
[]
[]
[]
[]
[]
[]
[]
[]
[]
[]
[]
[]
[]
[]
[]
[]
[]
[]
[]
[]
[]
[]
[]
[]
[]
[]
[]
[]
[]
[]
[]
[]
[]
[]
[]
[]
[]
[]
[]
[]
[]
[]
[]
[]
[]
[]
[]
[]
[]
[]
[]
[]
[]
[]
[]
[]
[]
[]
[]
[]
[]
[]
[]
[]
[]
[]
[]
[]
[]
[]
[]
[]
[]
[]
[]
[]
[]
[]
[]
[]
[]
[]
[]
[]
[]
[]
[]
[]
[]
[]
[]
[]
[]
[]
[]
[]
[]
[]
[]
[]
[]
[]
[]
[]
[]
[]
[]
[]
[]
[]
[]
[]
[]
[]
[]
[]
[]
[]
[]
[]
[]
[]
[]
[]
[]
[]
[]
[]
[]
[]
[]
[]
[]
[]
[]
[]
[]
[]
[]
[]
[]
[]
[]
[]
[]
[]
[]
[]
[]
[]
[]
[]
[]
[]
[]
[]
[]
[]
[]
[]
[]
[]
[]
[]
[]
[]
[]
[]
[]
[]
[]
[]
[]
[]
[]
[]
[]
[]
[]
[]
[]
[]
[]
[]
[]
[]
[]
[]
[]
[]
[]
[]
[]
[]
[]
[]
[]
[]
[]
[]
[]
[]
[]
[]
[]
[]
[]
[]
[]
[]
[]
[]
[]
[]
[]
[]
[]
[]
[]
[]
[]
[]
[]
[]
[]
[]
[]
[]
[]
[]
[]
[]
[]
[]
[]
[]
[]
[]
[]
[]
[]
[]
[]
[]
[]
[]
[]
[]
[]
[]
[]
[]
[]
[]
[]
[]
[]
[]
[]
[]
[]
[]
[]
[]
[]
[]
[]
[]
[]
[]
[]
[]
[]
[]
[]
[]
[]
[]
[]
[]
[]
[]
[]
[]
[]
[]
[]
[]
[]
[]
[]
[]
[]
[]
[]
[]
[]
[]
[]
[]
[]
[]
[]
[]
[]
[]
[]
[]
[]
[]
[]
[]
[]
[]
[]
[]
[]
[]
[]
[]
[]
[]
[]
[]
[]
[]
[]
[]
[]
[]
[]
[]
[]
[]
[]
[]
[]
[]
[]
[]
[]
[]
[]
[]
[]
[]
[]
[]
[]
[]
[]
[]
[]
[]
[]
[]
[]
[]
[]
[]
[]
[]
[]
[]
[]
[]
[]
[]
[]
[]
[]
[]
[]
[]
[]
[]
[]
[]
[]
[]
[]
[]
[]
[]
[]
[]
[]
[]
[]
[]
[]
[]
[]
[]
[]
[]
[]
[]
[]
[]
[]
[]
[]
[]
[]
[]
[]
[]
[]
[]
[]
[]
[]
[]
[]
[]
[]
[]
[]
[]
[]
[]
[]
[]
[]
[]
[]
[]
[]
[]
[]
[]
[]
[]
[]
[]
[]
[]
[]
[]
[]
[]
[]
[]
[]
[]
[]
[]
[]
[]
[]
[]
[]
[]
[]
[]
[]
[]
[]
[]
[]
[]
[]
[]
[]
[]
[]
[]
[]
[]
[]
[]
[]
[]
[]
[]
[]
[]
[]
[]
[]
[]
[]
[]
[]
[]
[]
[]
[]
[]
[]
[]
[]
[]
[]
[]
[]
[]
[]
[]
[]
[]
[]
[]
[]
[]
[]
[]
[]
[]
[]
[]
[]
[]
[]
[]
[]
[]
[]
[]
[]
[]
[]
[]
[]
[]
[]
[]
[]
[]
[]
[]
[]
[]
[]
[]
[]
[]
[]
[]
[]
[]
[]
[]
[]
[]
[]
[]
[]
[]
[]
[]
[]
[]
[]
[]
[]
[]
[]
["(č. 34) Účast členů řešitelského týmu v mezinárodních profesních sítích, organizacích VaVaI a zahraničních hodnotících panelech a komisích v hodnoceném období - aktualizace ve vztahu k návrhu"]
["Název profesní sítě, organizace, panelu, komise ","Zřizovatel","Charakter subjektu","Typ subjektu","Druh členství","Funkční období - od (rrrr, při nedostatku informací '0')","Funkční období - do (rrrr, při nedostatku informací '0')","Příjmení, jméno člena řeš. týmu (vepisujte právě jednu osobu)","ORCID (Reseacher´s ID)","Pohlaví","Zkratka názvu účastníka projektu (nepovinné pole)"]
[]
[]
[]
[]
[]
[]
[]
[]
[]
[]
[]
[]
[]
[]
[]
[]
[]
[]
[]
[]
[]
[]
[]
[]
[]
[]
[]
[]
[]
[]
[]
[]
[]
[]
[]
[]
[]
[]
[]
[]
[]
[]
[]
[]
[]
[]
[]
[]
[]
[]
[]
[]
[]
[]
[]
[]
[]
[]
[]
[]
[]
[]
[]
[]
[]
[]
[]
[]
[]
[]
[]
[]
[]
[]
[]
[]
[]
[]
[]
[]
[]
[]
[]
[]
[]
[]
[]
[]
[]
[]
[]
[]
[]
[]
[]
[]
[]
[]
[]
[]
[]
[]
[]
[]
[]
[]
[]
[]
[]
[]
[]
[]
[]
[]
[]
[]
[]
[]
[]
[]
[]
[]
[]
[]
[]
[]
[]
[]
[]
[]
[]
[]
[]
[]
[]
[]
[]
[]
[]
[]
[]
[]
[]
[]
[]
[]
[]
[]
[]
[]
[]
[]
[]
[]
[]
[]
[]
[]
[]
[]
[]
[]
[]
[]
[]
[]
[]
[]
[]
[]
[]
[]
[]
[]
[]
[]
[]
[]
[]
[]
[]
[]
[]
[]
[]
[]
[]
[]
[]
[]
[]
[]
[]
[]
[]
[]
[]
[]
[]
[]
[]
[]
[]
[]
[]
[]
[]
[]
[]
[]
[]
[]
[]
[]
[]
[]
[]
[]
[]
[]
[]
[]
[]
[]
[]
[]
[]
[]
[]
[]
[]
[]
[]
[]
[]
[]
[]
[]
[]
[]
[]
[]
[]
[]
[]
[]
[]
[]
[]
[]
[]
[]
[]
[]
[]
[]
[]
[]
[]
[]
[]
[]
[]
[]
[]
[]
[]
[]
[]
[]
[]
[]
[]
[]
[]
[]
[]
[]
[]
[]
[]
[]
[]
[]
[]
[]
[]
[]
[]
[]
[]
[]
[]
[]
[]
[]
[]
[]
[]
[]
[]
[]
[]
[]
[]
[]
[]
[]
[]
[]
[]
[]
[]
[]
[]
[]
[]
[]
[]
[]
[]
[]
[]
[]
[]
[]
[]
[]
[]
[]
[]
[]
[]
[]
[]
[]
[]
[]
[]
[]
[]
[]
[]
[]
[]
[]
[]
[]
[]
[]
[]
[]
[]
[]
[]
[]
[]
[]
[]
[]
[]
[]
[]
[]
[]
[]
[]
[]
[]
[]
[]
[]
[]
[]
[]
[]
[]
[]
[]
[]
[]
[]
[]
[]
[]
[]
[]
[]
[]
[]
[]
[]
[]
[]
[]
[]
[]
[]
[]
[]
[]
[]
[]
[]
[]
[]
[]
[]
[]
[]
[]
[]
[]
[]
[]
[]
[]
[]
[]
[]
[]
[]
[]
[]
[]
[]
[]
[]
[]
[]
[]
[]
[]
[]
[]
[]
[]
[]
[]
[]
[]
[]
[]
[]
[]
[]
[]
[]
[]
[]
[]
[]
[]
[]
[]
[]
[]
[]
[]
[]
[]
[]
[]
[]
[]
[]
[]
[]
[]
[]
[]
[]
[]
[]
[]
[]
[]
[]
[]
[]
[]
[]
[]
[]
[]
[]
[]
[]
[]
[]
[]
[]
[]
[]
[]
[]
[]
[]
[]
[]
[]
[]
[]
[]
[]
[]
[]
[]
[]
[]
[]
[]
[]
[]
[]
[]
[]
[]
[]
[]
[]
[]
[]
[]
[]
[]
[]
[]
[]
[]
[]
[]
[]
[]
[]
[]
[]
[]
[]
[]
[]
[]
[]
[]
[]
[]
[]
[]
[]
[]
[]
[]
[]
[]
[]
[]
[]
[]
[]
[]
[]
[]
[]
[]
[]
[]
[]
[]
[]
[]
[]
[]
[]
[]
[]
[]
[]
[]
[]
[]
[]
[]
[]
[]
[]
[]
[]
[]
[]
[]
[]
[]
[]
[]
[]
[]
[]
[]
[]
[]
[]
[]
[]
[]
[]
[]
[]
[]
[]
[]
[]
[]
[]
[]
[]
[]
[]
[]
[]
[]
[]
[]
[]
[]
[]
[]
[]
[]
[]
[]
[]
[]
[]
[]
[]
[]
[]
[]
[]
[]
[]
[]
[]
[]
[]
[]
[]
[]
[]
[]
[]
[]
[]
[]
[]
[]
[]
[]
[]
[]
[]
[]
[]
[]
[]
[]
[]
[]
[]
[]
[]
[]
[]
[]
[]
[]
[]
[]
[]
[]
[]
[]
[]
[]
[]
[]
[]
[]
[]
[]
[]
[]
[]
[]
[]
[]
[]
[]
[]
[]
[]
[]
[]
[]
[]
[]
[]
[]
[]
[]
[]
[]
[]
[]
[]
[]
[]
[]
[]
[]
[]
[]
[]
[]
[]
[]
[]
[]
[]
[]
[]
[]
[]
[]
[]
[]
[]
[]
[]
[]
[]
[]
[]
[]
[]
[]
[]
[]
[]
[]
[]
[]
[]
[]
[]
[]
[]
[]
[]
[]
[]
[]
[]
[]
[]
[]
[]
[]
[]
[]
[]
[]
[]
[]
[]
[]
[]
[]
[]
[]
[]
[]
[]
[]
[]
[]
[]
[]
[]
[]
[]
[]
[]
[]
[]
[]
[]
[]
[]
[]
[]
[]
[]
[]
[]
[]
[]
[]
[]
[]
[]
[]
[]
[]
[]
[]
[]
[]
[]
[]
[]
[]
[]
[]
[]
[]
[]
[]
[]
[]
[]
[]
[]
[]
[]
[]
[]
[]
[]
[]
[]
[]
[]
[]
[]
[]
[]
[]
[]
[]
[]
[]
[]
[]
[]
[]
[]
[]
[]
[]
[]
[]
[]
[]
[]
[]
[]
[]
[]
[]
[]
[]
[]
[]
[]
[]
[]
[]
[]
[]
[]
[]
[]
[]
[]
[]
[]
[]
[]
[]
[]
[]
[]
[]
[]
[]
[]
[]
[]
[]
[]
[]
[]
[]
[]
[]
[]
[]
[]
[]
[]
[]
[]
[]
[]
[]
[]
[]
[]
[]
[]
[]
[]
[]
[]
[]
[]
[]
[]
[]
[]
[]
[]
[]
[]
[]
[]
[]
[]
[]
[]
[]
[]
[]
[]
[]
[]
[]
[]
[]
[]
[]
[]
[]
[]
[]
[]
[]
[]
[]
[]
[]
[]
[]
[]
[]
[]
[]
[]
[]
[]
[]
[]
[]
[]
[]
[]
[]
[]
[]
[]
[]
[]
[]
[]
[]
[]
[]
[]
[]
[]
[]
[]
[]
[]
[]
[]
[]
[]
[]
[]
[]
[]
["(č. 39) Projekty juniorních členů řešitelského týmu, vč. studentů zahájené v hodnoceném období"]
["Název projektu v jazyce podání","Podání (mm.rrrr)","Přijetí (mm.rrrr, v případě, že projekt ještě nebyl přijat '0')","ID projektu","Oborově shodné nebo oborově či mezioborově návazné téma k prioritní oblasti VaVaI jako řešený projekt LX","Poskytovatel podpory ","Schválená doba řešení - od (mm.rrrr nebo '0' pokud nepřijat)","Schválená doba řešení - do (mm.rrrr nebo '0' pokud nepřijat)","Příjemce podpory (příjemce/další účastník, který projekt realizuje)","Řešitel (příjmení, jméno)/případně spoluřešitel dle pozice juniorního člena týmu projektu LX ve vykazovaném projektu  ","Pohlaví","ORCID (Reseacher´s ID)","Počet dalších členů řešitelského týmu projektu LX zapojených do podaného/přijatého projektu","Uznané náklady příjemce celkem (částka)","Měna","Z toho  podpora poskytnutá příjemci (částka)","Měna","Financováno ze zahraničí","Aktivní odkaz na projekt (do veřejně přístupné DB nebo na internet. stránku prokazující jeho existenci)","Zkratka názvu účastníka projektu (nepovinné pole)"]

{"sheet":"ukazatele_44-51","index":2,"n_rows":4029,"n_cols":24,"rows_kept":4029,"cut":false,"hidden":false,"merged":[[1011,10,1012,10],[1010,0,1010,10],[2017,23,2018,23],[2016,0,2016,23],[3022,0,3022,11],[1011,9,1012,9],[2017,14,2018,14],[2017,15,2018,15],[2017,22,2018,22],[2017,16,2018,16],[2017,17,2017,18],[2017,19,2017,21],[2017,4,2017,13],[4028,7,4037,8],[0,0,0,1],[1,0,1,2],[2,0,2,2],[1011,0,1012,0],[1011,1,1012,1],[1011,2,1012,2],[1011,3,1012,3],[1011,4,1011,5],[1011,6,1011,8],[5,0,5,8],[4027,0,4027,6],[2017,0,2018,0],[2017,1,2018,1],[2017,2,2018,2],[2017,3,2018,3]]}
["Ministerstvo školství, mládeže a tělovýchovy  "]
["Program LX-PZP-2023: příloha 1 - Ukazatele 44-51"]
[]
[]
["LX22NPO510x"]
["(č. 44) Využití velkých výzkumných infrastruktur"]
["Velká výzkumná infrastruktura (název VVI)","Cestovní mapa","ID VVI podle IS VaVaI","Název státu, kde je VVI provozována","Intenzita využití (strojový čas v h)","Intenzita využití (člověkohodiny v FTE/h)","PA","Popis využití v PA","Zkratka názvu účastníka projektu (nepovinné pole)"]
[]
[]
[]
[]
[]
[]
[]
[]
[]
[]
[]
[]
[]
[]
[]
[]
[]
[]
[]
[]
[]
[]
[]
[]
[]
[]
[]
[]
[]
[]
[]
[]
[]
[]
[]
[]
[]
[]
[]
[]
[]
[]
[]
[]
[]
[]
[]
[]
[]
[]
[]
[]
[]
[]
[]
[]
[]
[]
[]
[]
[]
[]
[]
[]
[]
[]
[]
[]
[]
[]
[]
[]
[]
[]
[]
[]
[]
[]
[]
[]
[]
[]
[]
[]
[]
[]
[]
[]
[]
[]
[]
[]
[]
[]
[]
[]
[]
[]
[]
[]
[]
[]
[]
[]
[]
[]
[]
[]
[]
[]
[]
[]
[]
[]
[]
[]
[]
[]
[]
[]
[]
[]
[]
[]
[]
[]
[]
[]
[]
[]
[]
[]
[]
[]
[]
[]
[]
[]
[]
[]
[]
[]
[]
[]
[]
[]
[]
[]
[]
[]
[]
[]
[]
[]
[]
[]
[]
[]
[]
[]
[]
[]
[]
[]
[]
[]
[]
[]
[]
[]
[]
[]
[]
[]
[]
[]
[]
[]
[]
[]
[]
[]
[]
[]
[]
[]
[]
[]
[]
[]
[]
[]
[]
[]
[]
[]
[]
[]
[]
[]
[]
[]
[]
[]
[]
[]
[]
[]
[]
[]
[]
[]
[]
[]
[]
[]
[]
[]
[]
[]
[]
[]
[]
[]
[]
[]
[]
[]
[]
[]
[]
[]
[]
[]
[]
[]
[]
[]
[]
[]
[]
[]
[]
[]
[]
[]
[]
[]
[]
[]
[]
[]
[]
[]
[]
[]
[]
[]
[]
[]
[]
[]
[]
[]
[]
[]
[]
[]
[]
[]
[]
[]
[]
[]
[]
[]
[]
[]
[]
[]
[]
[]
[]
[]
[]
[]
[]
[]
[]
[]
[]
[]
[]
[]
[]
[]
[]
[]
[]
[]
[]
[]
[]
[]
[]
[]
[]
[]
[]
[]
[]
[]
[]
[]
[]
[]
[]
[]
[]
[]
[]
[]
[]
[]
[]
[]
[]
[]
[]
[]
[]
[]
[]
[]
[]
[]
[]
[]
[]
[]
[]
[]
[]
[]
[]
[]
[]
[]
[]
[]
[]
[]
[]
[]
[]
[]
[]
[]
[]
[]
[]
[]
[]
[]
[]
[]
[]
[]
[]
[]
[]
[]
[]
[]
[]
[]
[]
[]
[]
[]
[]
[]
[]
[]
[]
[]
[]
[]
[]
[]
[]
[]
[]
[]
[]
[]
[]
[]
[]
[]
[]
[]
[]
[]
[]
[]
[]
[]
[]
[]
[]
[]
[]
[]
[]
[]
[]
[]
[]
[]
[]
[]
[]
[]
[]
[]
[]
[]
[]
[]
[]
[]
[]
[]
[]
[]
[]
[]
[]
[]
[]
[]
[]
[]
[]
[]
[]
[]
[]
[]
[]
[]
[]
[]
[]
[]
[]
[]
[]
[]
[]
[]
[]
[]
[]
[]
[]
[]
[]
[]
[]
[]
[]
[]
[]
[]
[]
[]
[]
[]
[]
[]
[]
[]
[]
[]
[]
[]
[]
[]
[]
[]
[]
[]
[]
[]
[]
[]
[]
[]
[]
[]
[]
[]
[]
[]
[]
[]
[]
[]
[]
[]
[]
[]
[]
[]
[]
[]
[]
[]
[]
[]
[]
[]
[]
[]
[]
[]
[]
[]
[]
[]
[]
[]
[]
[]
[]
[]
[]
[]
[]
[]
[]
[]
[]
[]
[]
[]
[]
[]
[]
[]
[]
[]
[]
[]
[]
[]
[]
[]
[]
[]
[]
[]
[]
[]
[]
[]
[]
[]
[]
[]
[]
[]
[]
[]
[]
[]
[]
[]
[]
[]
[]
[]
[]
[]
[]
[]
[]
[]
[]
[]
[]
[]
[]
[]
[]
[]
[]
[]
[]
[]
[]
[]
[]
[]
[]
[]
[]
[]
[]
[]
[]
[]
[]
[]
[]
[]
[]
[]
[]
[]
[]
[]
[]
[]
[]
[]
[]
[]
[]
[]
[]
[]
[]
[]
[]
[]
[]
[]
[]
[]
[]
[]
[]
[]
[]
[]
[]
[]
[]
[]
[]
[]
[]
[]
[]
[]
[]
[]
[]
[]
[]
[]
[]
[]
[]
[]
[]
[]
[]
[]
[]
[]
[]
[]
[]
[]
[]
[]
[]
[]
[]
[]
[]
[]
[]
[]
[]
[]
[]
[]
[]
[]
[]
[]
[]
[]
[]
[]
[]
[]
[]
[]
[]
[]
[]
[]
[]
[]
[]
[]
[]
[]
[]
[]
[]
[]
[]
[]
[]
[]
[]
[]
[]
[]
[]
[]
[]
[]
[]
[]
[]
[]
[]
[]
[]
[]
[]
[]
[]
[]
[]
[]
[]
[]
[]
[]
[]
[]
[]
[]
[]
[]
[]
[]
[]
[]
[]
[]
[]
[]
[]
[]
[]
[]
[]
[]
[]
[]
[]
[]
[]
[]
[]
[]
[]
[]
[]
[]
[]
[]
[]
[]
[]
[]
[]
[]
[]
[]
[]
[]
[]
[]
[]
[]
[]
[]
[]
[]
[]
[]
[]
[]
[]
[]
[]
[]
[]
[]
[]
[]
[]
[]
[]
[]
[]
[]
[]
[]
[]
[]
[]
[]
[]
[]
[]
[]
[]
[]
[]
[]
[]
[]
[]
[]
[]
[]
[]
[]
[]
[]
[]
[]
[]
[]
[]
[]
[]
[]
[]
[]
[]
[]
[]
[]
[]
[]
[]
[]
[]
[]
[]
[]
[]
[]
[]
[]
[]
[]
[]
[]
[]
[]
[]
[]
[]
[]
[]
[]
[]
[]
[]
[]
[]
[]
[]
[]
[]
[]
[]
[]
[]
[]
[]
[]
[]
[]
[]
[]
[]
[]
[]
[]
[]
[]
[]
[]
[]
[]
[]
[]
[]
[]
[]
[]
[]
[]
[]
[]
[]
[]
[]
[]
[]
[]
[]
[]
[]
[]
[]
[]
[]
[]
[]
[]
[]
[]
[]
[]
[]
[]
[]
[]
[]
[]
[]
[]
[]
[]
[]
[]
[]
[]
[]
[]
[]
[]
[]
[]
[]
[]
[]
[]
[]
[]
[]
[]
[]
[]
[]
[]
[]
[]
[]
[]
[]
[]
[]
[]
[]
[]
[]
[]
[]
[]
[]
[]
[]
[]
[]
[]
[]
[]
[]
[]
[]
[]
[]
[]
[]
[]
[]
["(č. 45) Spolupráce s výzkumnými organizacemi mimo projektové konsorcium v daném období"]
["Název/identifikace spolupráce","PA","Typ spolupráce","Oblast činnosti, je-li odlišná od prioritní (jinak NR)","Počet zapojených subjektů",null,"Region působnosti",null,null,"Název/názvy zapojených organizací","Zkratka názvu účastníka projektu (nepovinné pole)"]
[null,null,null,null,"Celkem","Z toho veřejnoprávních","ČR: shoda s regionálním umístěním místa realizace PA","ČR: mimo region realizace PA","Mezinárodní / nadnárodní"]
[]
[]
[]
[]
[]
[]
[]
[]
[]
[]
[]
[]
[]
[]
[]
[]
[]
[]
[]
[]
[]
[]
[]
[]
[]
[]
[]
[]
[]
[]
[]
[]
[]
[]
[]
[]
[]
[]
[]
[]
[]
[]
[]
[]
[]
[]
[]
[]
[]
[]
[]
[]
[]
[]
[]
[]
[]
[]
[]
[]
[]
[]
[]
[]
[]
[]
[]
[]
[]
[]
[]
[]
[]
[]
[]
[]
[]
[]
[]
[]
[]
[]
[]
[]
[]
[]
[]
[]
[]
[]
[]
[]
[]
[]
[]
[]
[]
[]
[]
[]
[]
[]
[]
[]
[]
[]
[]
[]
[]
[]
[]
[]
[]
[]
[]
[]
[]
[]
[]
[]
[]
[]
[]
[]
[]
[]
[]
[]
[]
[]
[]
[]
[]
[]
[]
[]
[]
[]
[]
[]
[]
[]
[]
[]
[]
[]
[]
[]
[]
[]
[]
[]
[]
[]
[]
[]
[]
[]
[]
[]
[]
[]
[]
[]
[]
[]
[]
[]
[]
[]
[]
[]
[]
[]
[]
[]
[]
[]
[]
[]
[]
[]
[]
[]
[]
[]
[]
[]
[]
[]
[]
[]
[]
[]
[]
[]
[]
[]
[]
[]
[]
[]
[]
[]
[]
[]
[]
[]
[]
[]
[]
[]
[]
[]
[]
[]
[]
[]
[]
[]
[]
[]
[]
[]
[]
[]
[]
[]
[]
[]
[]
[]
[]
[]
[]
[]
[]
[]
[]
[]
[]
[]
[]
[]
[]
[]
[]
[]
[]
[]
[]
[]
[]
[]
[]
[]
[]
[]
[]
[]
[]
[]
[]
[]
[]
[]
[]
[]
[]
[]
[]
[]
[]
[]
[]
[]
[]
[]
[]
[]
[]
[]
[]
[]
[]
[]
[]
[]
[]
[]
[]
[]
[]
[]
[]
[]
[]
[]
[]
[]
[]
[]
[]
[]
[]
[]
[]
[]
[]
[]
[]
[]
[]
[]
[]
[]
[]
[]
[]
[]
[]
[]
[]
[]
[]
[]
[]
[]
[]
[]
[]
[]
[]
[]
[]
[]
[]
[]
[]
[]
[]
[]
[]
[]
[]
[]
[]
[]
[]
[]
[]
[]
[]
[]
[]
[]
[]
[]
[]
[]
[]
[]
[]
[]
[]
[]
[]
[]
[]
[]
[]
[]
[]
[]
[]
[]
[]
[]
[]
[]
[]
[]
[]
[]
[]
[]
[]
[]
[]
[]
[]
[]
[]
[]
[]
[]
[]
[]
[]
[]
[]
[]
[]
[]
[]
[]
[]
[]
[]
[]
[]
[]
[]
[]
[]
[]
[]
[]
[]
[]
[]
[]
[]
[]
[]
[]
[]
[]
[]
[]
[]
[]
[]
[]
[]
[]
[]
[]
[]
[]
[]
[]
[]
[]
[]
[]
[]
[]
[]
[]
[]
[]
[]
[]
[]
[]
[]
[]
[]
[]
[]
[]
[]
[]
[]
[]
[]
[]
[]
[]
[]
[]
[]
[]
[]
[]
[]
[]
[]
[]
[]
[]
[]
[]
[]
[]
[]
[]
[]
[]
[]
[]
[]
[]
[]
[]
[]
[]
[]
[]
[]
[]
[]
[]
[]
[]
[]
[]
[]
[]
[]
[]
[]
[]
[]
[]
[]
[]
[]
[]
[]
[]
[]
[]
[]
[]
[]
[]
[]
[]
[]
[]
[]
[]
[]
[]
[]
[]
[]
[]
[]
[]
[]
[]
[]
[]
[]
[]
[]
[]
[]
[]
[]
[]
[]
[]
[]
[]
[]
[]
[]
[]
[]
[]
[]
[]
[]
[]
[]
[]
[]
[]
[]
[]
[]
[]
[]
[]
[]
[]
[]
[]
[]
[]
[]
[]
[]
[]
[]
[]
[]
[]
[]
[]
[]
[]
[]
[]
[]
[]
[]
[]
[]
[]
[]
[]
[]
[]
[]
[]
[]
[]
[]
[]
[]
[]
[]
[]
[]
[]
[]
[]
[]
[]
[]
[]
[]
[]
[]
[]
[]
[]
[]
[]
[]
[]
[]
[]
[]
[]
[]
[]
[]
[]
[]
[]
[]
[]
[]
[]
[]
[]
[]
[]
[]
[]
[]
[]
[]
[]
[]
[]
[]
[]
[]
[]
[]
[]
[]
[]
[]
[]
[]
[]
[]
[]
[]
[]
[]
[]
[]
[]
[]
[]
[]
[]
[]
[]
[]
[]
[]
[]
[]
[]
[]
[]
[]
[]
[]
[]
[]
[]
[]
[]
[]
[]
[]
[]
[]
[]
[]
[]
[]
[]
[]
[]
[]
[]
[]
[]
[]
[]
[]
[]
[]
[]
[]
[]
[]
[]
[]
[]
[]
[]
[]
[]
[]
[]
[]
[]
[]
[]
[]
[]
[]
[]
[]
[]
[]
[]
[]
[]
[]
[]
[]
[]
[]
[]
[]
[]
[]
[]
[]
[]
[]
[]
[]
[]
[]
[]
[]
[]
[]
[]
[]
[]
[]
[]
[]
[]
[]
[]
[]
[]
[]
[]
[]
[]
[]
[]
[]
[]
[]
[]
[]
[]
[]
[]
[]
[]
[]
[]
[]
[]
[]
[]
[]
[]
[]
[]
[]
[]
[]
[]
[]
[]
[]
[]
[]
[]
[]
[]
[]
[]
[]
[]
[]
[]
[]
[]
[]
[]
[]
[]
[]
[]
[]
[]
[]
[]
[]
[]
[]
[]
[]
[]
[]
[]
[]
[]
[]
[]
[]
[]
[]
[]
[]
[]
[]
[]
[]
[]
[]
[]
[]
[]
[]
[]
[]
[]
[]
[]
[]
[]
[]
[]
[]
[]
[]
[]
[]
[]
[]
[]
[]
[]
[]
[]
[]
[]
[]
[]
[]
[]
[]
[]
[]
[]
[]
[]
[]
[]
[]
[]
[]
[]
[]
[]
[]
[]
[]
[]
[]
[]
[]
[]
[]
[]
[]
[]
[]
[]
[]
[]
[]
[]
[]
[]
[]
[]
[]
[]
[]
[]
[]
[]
[]
[]
[]
[]
[]
[]
[]
[]
[]
[]
[]
[]
[]
[]
[]
[]
[]
[]
[]
[]
[]
[]
[]
[]
[]
[]
[]
[]
[]
[]
[]
[]
[]
[]
[]
[]
[]
[]
[]
[]
[]
[]
[]
[]
[]
[]
[]
[]
[]
[]
[]
[]
[]
[]
[]
[]
[]
[]
[]
[]
[]
[]
[]
[]
[]
[]
[]
["(č. 46, 47, 48, 49) Spolupráce s podniky a veřejnoprávními organizacemi z aplikační sféry mimo projektové konsorcium dříve neuvedenými "]
["Název/identifikace spolupráce","PA","Typ spolupráce","Oblast činnosti, je-li odlišná od prioritní ","Finanční prostředky získané příjemcem/dalším účastníkem spoluprací",null,null,null,null,null,null,null,null,null,"Status spolupráce (typ právního aktu nebo dokumentu)","Doba sjednané spolupráce od (mm.rrrrr)","Doba sjednané spolupráce do (mm.rrrrr, je-li dlouhodobá, vyplňte NR)","Počet zapojených subjektů",null,"Region působnosti",null,null,"Název/názvy zapojených organizací","Zkratka názvu účastníka projektu (nepovinné pole)"]
[null,null,null,null,"Z licencí (částka, je-li nerelevantní, vyplňte 0 a v měně CZK)","Měna","Ze smluvního výzkumu (částka, je-li nerelevantní, vyplňte 0 a v měně CZK)","Měna","Z jiných typů aplikací (částka, je-li nerelevantní, vyplňte 0 a v měně CZK)","Měna","Z toho z jiných typů aplikací v případě, že šlo o soukromý zdroj (částka, je-li nerelevantní, vyplňte 0 a v měně CZK)","Měna","Předpokládaný objem v budoucnu získaných prostředků (částka, je-li nerelevantní, vyplňte 0 a v měně CZK)","Měna",null,null,null,"Celkem","Z toho podniků","ČR: shoda s regionálním umístěním místa realizace PA","ČR: mimo region realizace PA","Mezinárodní / nadnárodní"]
[]
[]
[]
[]
[]
[]
[]
[]
[]
[]
[]
[]
[]
[]
[]
[]
[]
[]
[]
[]
[]
[]
[]
[]
[]
[]
[]
[]
[]
[]
[]
[]
[]
[]
[]
[]
[]
[]
[]
[]
[]
[]
[]
[]
[]
[]
[]
[]
[]
[]
[]
[]
[]
[]
[]
[]
[]
[]
[]
[]
[]
[]
[]
[]
[]
[]
[]
[]
[]
[]
[]
[]
[]
[]
[]
[]
[]
[]
[]
[]
[]
[]
[]
[]
[]
[]
[]
[]
[]
[]
[]
[]
[]
[]
[]
[]
[]
[]
[]
[]
[]
[]
[]
[]
[]
[]
[]
[]
[]
[]
[]
[]
[]
[]
[]
[]
[]
[]
[]
[]
[]
[]
[]
[]
[]
[]
[]
[]
[]
[]
[]
[]
[]
[]
[]
[]
[]
[]
[]
[]
[]
[]
[]
[]
[]
[]
[]
[]
[]
[]
[]
[]
[]
[]
[]
[]
[]
[]
[]
[]
[]
[]
[]
[]
[]
[]
[]
[]
[]
[]
[]
[]
[]
[]
[]
[]
[]
[]
[]
[]
[]
[]
[]
[]
[]
[]
[]
[]
[]
[]
[]
[]
[]
[]
[]
[]
[]
[]
[]
[]
[]
[]
[]
[]
[]
[]
[]
[]
[]
[]
[]
[]
[]
[]
[]
[]
[]
[]
[]
[]
[]
[]
[]
[]
[]
[]
[]
[]
[]
[]
[]
[]
[]
[]
[]
[]
[]
[]
[]
[]
[]
[]
[]
[]
[]
[]
[]
[]
[]
[]
[]
[]
[]
[]
[]
[]
[]
[]
[]
[]
[]
[]
[]
[]
[]
[]
[]
[]
[]
[]
[]
[]
[]
[]
[]
[]
[]
[]
[]
[]
[]
[]
[]
[]
[]
[]
[]
[]
[]
[]
[]
[]
[]
[]
[]
[]
[]
[]
[]
[]
[]
[]
[]
[]
[]
[]
[]
[]
[]
[]
[]
[]
[]
[]
[]
[]
[]
[]
[]
[]
[]
[]
[]
[]
[]
[]
[]
[]
[]
[]
[]
[]
[]
[]
[]
[]
[]
[]
[]
[]
[]
[]
[]
[]
[]
[]
[]
[]
[]
[]
[]
[]
[]
[]
[]
[]
[]
[]
[]
[]
[]
[]
[]
[]
[]
[]
[]
[]
[]
[]
[]
[]
[]
[]
[]
[]
[]
[]
[]
[]
[]
[]
[]
[]
[]
[]
[]
[]
[]
[]
[]
[]
[]
[]
[]
[]
[]
[]
[]
[]
[]
[]
[]
[]
[]
[]
[]
[]
[]
[]
[]
[]
[]
[]
[]
[]
[]
[]
[]
[]
[]
[]
[]
[]
[]
[]
[]
[]
[]
[]
[]
[]
[]
[]
[]
[]
[]
[]
[]
[]
[]
[]
[]
[]
[]
[]
[]
[]
[]
[]
[]
[]
[]
[]
[]
[]
[]
[]
[]
[]
[]
[]
[]
[]
[]
[]
[]
[]
[]
[]
[]
[]
[]
[]
[]
[]
[]
[]
[]
[]
[]
[]
[]
[]
[]
[]
[]
[]
[]
[]
[]
[]
[]
[]
[]
[]
[]
[]
[]
[]
[]
[]
[]
[]
[]
[]
[]
[]
[]
[]
[]
[]
[]
[]
[]
[]
[]
[]
[]
[]
[]
[]
[]
[]
[]
[]
[]
[]
[]
[]
[]
[]
[]
[]
[]
[]
[]
[]
[]
[]
[]
[]
[]
[]
[]
[]
[]
[]
[]
[]
[]
[]
[]
[]
[]
[]
[]
[]
[]
[]
[]
[]
[]
[]
[]
[]
[]
[]
[]
[]
[]
[]
[]
[]
[]
[]
[]
[]
[]
[]
[]
[]
[]
[]
[]
[]
[]
[]
[]
[]
[]
[]
[]
[]
[]
[]
[]
[]
[]
[]
[]
[]
[]
[]
[]
[]
[]
[]
[]
[]
[]
[]
[]
[]
[]
[]
[]
[]
[]
[]
[]
[]
[]
[]
[]
[]
[]
[]
[]
[]
[]
[]
[]
[]
[]
[]
[]
[]
[]
[]
[]
[]
[]
[]
[]
[]
[]
[]
[]
[]
[]
[]
[]
[]
[]
[]
[]
[]
[]
[]
[]
[]
[]
[]
[]
[]
[]
[]
[]
[]
[]
[]
[]
[]
[]
[]
[]
[]
[]
[]
[]
[]
[]
[]
[]
[]
[]
[]
[]
[]
[]
[]
[]
[]
[]
[]
[]
[]
[]
[]
[]
[]
[]
[]
[]
[]
[]
[]
[]
[]
[]
[]
[]
[]
[]
[]
[]
[]
[]
[]
[]
[]
[]
[]
[]
[]
[]
[]
[]
[]
[]
[]
[]
[]
[]
[]
[]
[]
[]
[]
[]
[]
[]
[]
[]
[]
[]
[]
[]
[]
[]
[]
[]
[]
[]
[]
[]
[]
[]
[]
[]
[]
[]
[]
[]
[]
[]
[]
[]
[]
[]
[]
[]
[]
[]
[]
[]
[]
[]
[]
[]
[]
[]
[]
[]
[]
[]
[]
[]
[]
[]
[]
[]
[]
[]
[]
[]
[]
[]
[]
[]
[]
[]
[]
[]
[]
[]
[]
[]
[]
[]
[]
[]
[]
[]
[]
[]
[]
[]
[]
[]
[]
[]
[]
[]
[]
[]
[]
[]
[]
[]
[]
[]
[]
[]
[]
[]
[]
[]
[]
[]
[]
[]
[]
[]
[]
[]
[]
[]
[]
[]
[]
[]
[]
[]
[]
[]
[]
[]
[]
[]
[]
[]
[]
[]
[]
[]
[]
[]
[]
[]
[]
[]
[]
[]
[]
[]
[]
[]
[]
[]
[]
[]
[]
[]
[]
[]
[]
[]
[]
[]
[]
[]
[]
[]
[]
[]
[]
[]
[]
[]
[]
[]
[]
[]
[]
[]
[]
[]
[]
[]
[]
[]
[]
[]
[]
[]
[]
[]
[]
[]
[]
[]
[]
[]
[]
[]
[]
[]
[]
[]
[]
[]
[]
[]
[]
[]
[]
[]
[]
[]
[]
[]
[]
[]
[]
[]
[]
[]
[]
[]
[]
[]
[]
[]
[]
[]
[]
[]
[]
[]
[]
[]
[]
[]
[]
[]
[]
[]
[]
[]
[]
[]
[]
[]
[]
[]
[]
[]
[]
[]
[]
[]
[]
[]
[]
[]
[]
[]
[]
[]
[]
[]
[]
[]
[]
[]
[]
[]
[]
[]
[]
[]
["(č. 50) Udržitelnost výzkumných aktivit v prioritní oblasti VaVaI"]
["Indikativní popis aktivity výzkumné autority","Druh činnosti","Finanční zdroj ","Doložen souhlas poskytovatele/zřizovatele je-li relevantní z hlediska uvedeného zdroje financování","Průměrný ročný objem očekávaných příjmů z daného zdroje po ukončení projektu (částka, v letech 2026-2028)","Měna","Z toho zajištěno (částka - ve stejné měně jako očekávané příjmy)","Počet FTE výzkumníků, kteří aktivitu zabezpečí po ukončení projektu","Rok zahájení aktivity (rrrr)","Předpokládaný rok ukončení aktivity (rrrr)","Přesahuje dobu řešení projektu alespoň o 6 měsíců","Zkratka názvu účastníka projektu (nepovinné pole)"]
[]
[]
[]
[]
[]
[]
[]
[]
[]
[]
[]
[]
[]
[]
[]
[]
[]
[]
[]
[]
[]
[]
[]
[]
[]
[]
[]
[]
[]
[]
[]
[]
[]
[]
[]
[]
[]
[]
[]
[]
[]
[]
[]
[]
[]
[]
[]
[]
[]
[]
[]
[]
[]
[]
[]
[]
[]
[]
[]
[]
[]
[]
[]
[]
[]
[]
[]
[]
[]
[]
[]
[]
[]
[]
[]
[]
[]
[]
[]
[]
[]
[]
[]
[]
[]
[]
[]
[]
[]
[]
[]
[]
[]
[]
[]
[]
[]
[]
[]
[]
[]
[]
[]
[]
[]
[]
[]
[]
[]
[]
[]
[]
[]
[]
[]
[]
[]
[]
[]
[]
[]
[]
[]
[]
[]
[]
[]
[]
[]
[]
[]
[]
[]
[]
[]
[]
[]
[]
[]
[]
[]
[]
[]
[]
[]
[]
[]
[]
[]
[]
[]
[]
[]
[]
[]
[]
[]
[]
[]
[]
[]
[]
[]
[]
[]
[]
[]
[]
[]
[]
[]
[]
[]
[]
[]
[]
[]
[]
[]
[]
[]
[]
[]
[]
[]
[]
[]
[]
[]
[]
[]
[]
[]
[]
[]
[]
[]
[]
[]
[]
[]
[]
[]
[]
[]
[]
[]
[]
[]
[]
[]
[]
[]
[]
[]
[]
[]
[]
[]
[]
[]
[]
[]
[]
[]
[]
[]
[]
[]
[]
[]
[]
[]
[]
[]
[]
[]
[]
[]
[]
[]
[]
[]
[]
[]
[]
[]
[]
[]
[]
[]
[]
[]
[]
[]
[]
[]
[]
[]
[]
[]
[]
[]
[]
[]
[]
[]
[]
[]
[]
[]
[]
[]
[]
[]
[]
[]
[]
[]
[]
[]
[]
[]
[]
[]
[]
[]
[]
[]
[]
[]
[]
[]
[]
[]
[]
[]
[]
[]
[]
[]
[]
[]
[]
[]
[]
[]
[]
[]
[]
[]
[]
[]
[]
[]
[]
[]
[]
[]
[]
[]
[]
[]
[]
[]
[]
[]
[]
[]
[]
[]
[]
[]
[]
[]
[]
[]
[]
[]
[]
[]
[]
[]
[]
[]
[]
[]
[]
[]
[]
[]
[]
[]
[]
[]
[]
[]
[]
[]
[]
[]
[]
[]
[]
[]
[]
[]
[]
[]
[]
[]
[]
[]
[]
[]
[]
[]
[]
[]
[]
[]
[]
[]
[]
[]
[]
[]
[]
[]
[]
[]
[]
[]
[]
[]
[]
[]
[]
[]
[]
[]
[]
[]
[]
[]
[]
[]
[]
[]
[]
[]
[]
[]
[]
[]
[]
[]
[]
[]
[]
[]
[]
[]
[]
[]
[]
[]
[]
[]
[]
[]
[]
[]
[]
[]
[]
[]
[]
[]
[]
[]
[]
[]
[]
[]
[]
[]
[]
[]
[]
[]
[]
[]
[]
[]
[]
[]
[]
[]
[]
[]
[]
[]
[]
[]
[]
[]
[]
[]
[]
[]
[]
[]
[]
[]
[]
[]
[]
[]
[]
[]
[]
[]
[]
[]
[]
[]
[]
[]
[]
[]
[]
[]
[]
[]
[]
[]
[]
[]
[]
[]
[]
[]
[]
[]
[]
[]
[]
[]
[]
[]
[]
[]
[]
[]
[]
[]
[]
[]
[]
[]
[]
[]
[]
[]
[]
[]
[]
[]
[]
[]
[]
[]
[]
[]
[]
[]
[]
[]
[]
[]
[]
[]
[]
[]
[]
[]
[]
[]
[]
[]
[]
[]
[]
[]
[]
[]
[]
[]
[]
[]
[]
[]
[]
[]
[]
[]
[]
[]
[]
[]
[]
[]
[]
[]
[]
[]
[]
[]
[]
[]
[]
[]
[]
[]
[]
[]
[]
[]
[]
[]
[]
[]
[]
[]
[]
[]
[]
[]
[]
[]
[]
[]
[]
[]
[]
[]
[]
[]
[]
[]
[]
[]
[]
[]
[]
[]
[]
[]
[]
[]
[]
[]
[]
[]
[]
[]
[]
[]
[]
[]
[]
[]
[]
[]
[]
[]
[]
[]
[]
[]
[]
[]
[]
[]
[]
[]
[]
[]
[]
[]
[]
[]
[]
[]
[]
[]
[]
[]
[]
[]
[]
[]
[]
[]
[]
[]
[]
[]
[]
[]
[]
[]
[]
[]
[]
[]
[]
[]
[]
[]
[]
[]
[]
[]
[]
[]
[]
[]
[]
[]
[]
[]
[]
[]
[]
[]
[]
[]
[]
[]
[]
[]
[]
[]
[]
[]
[]
[]
[]
[]
[]
[]
[]
[]
[]
[]
[]
[]
[]
[]
[]
[]
[]
[]
[]
[]
[]
[]
[]
[]
[]
[]
[]
[]
[]
[]
[]
[]
[]
[]
[]
[]
[]
[]
[]
[]
[]
[]
[]
[]
[]
[]
[]
[]
[]
[]
[]
[]
[]
[]
[]
[]
[]
[]
[]
[]
[]
[]
[]
[]
[]
[]
[]
[]
[]
[]
[]
[]
[]
[]
[]
[]
[]
[]
[]
[]
[]
[]
[]
[]
[]
[]
[]
[]
[]
[]
[]
[]
[]
[]
[]
[]
[]
[]
[]
[]
[]
[]
[]
[]
[]
[]
[]
[]
[]
[]
[]
[]
[]
[]
[]
[]
[]
[]
[]
[]
[]
[]
[]
[]
[]
[]
[]
[]
[]
[]
[]
[]
[]
[]
[]
[]
[]
[]
[]
[]
[]
[]
[]
[]
[]
[]
[]
[]
[]
[]
[]
[]
[]
[]
[]
[]
[]
[]
[]
[]
[]
[]
[]
[]
[]
[]
[]
[]
[]
[]
[]
[]
[]
[]
[]
[]
[]
[]
[]
[]
[]
[]
[]
[]
[]
[]
[]
[]
[]
[]
[]
[]
[]
[]
[]
[]
[]
[]
[]
[]
[]
[]
[]
[]
[]
[]
[]
[]
[]
[]
[]
[]
[]
[]
[]
[]
[]
[]
[]
[]
[]
[]
[]
[]
[]
[]
[]
[]
[]
[]
[]
[]
[]
[]
[]
[]
[]
[]
[]
[]
[]
[]
[]
[]
[]
[]
[]
[]
[]
[]
[]
[]
[]
[]
[]
[]
[]
[]
[]
[]
[]
[]
[]
[]
[]
[]
[]
[]
[]
[]
[]
[]
[]
[]
[]
[]
[]
[]
[]
[]
[]
[]
[]
[]
[]
[]
[]
[]
[]
[]
[]
[]
[]
[]
[]
[]
["(č. 51) Odborná a informační podpora poskytovaná orgánům veřejné moci (OVM)"]
["Název OVM","Druh spolupráce","Poskytnut výsledek/výstup projektu","Doloženo (příloha č. / link)","Způsob využití orgány veřejné moci","Doloženo (příloha č. / link)","Zkratka názvu účastníka projektu (nepovinné pole)","• Druh spolupráce: např. poskytnutí výsledku/výstupu (specifikace druhu), konzultace, školení/vzdělávací akce, apod. \n• Způsob využití ze strany OVM: např. promítnutí do legislativy, do procesních postupů v resortu, do veřejného financování/ do hodnocení výkonu subjektů v resortu/  využití dat a analytických výstupů, apod.\n• Doložení např. kopií e-mailu, dopisu, výpisu z podání DS apod.\n\n"]

{"sheet":"ukazatele_53-55","index":3,"n_rows":3024,"n_cols":6,"rows_kept":3024,"cut":false,"hidden":false,"merged":[[3023,0,3023,1],[2016,0,2016,1],[2019,0,2019,5],[2020,0,2021,0],[2020,1,2021,1],[2020,2,2020,3],[2020,4,2020,5],[1009,0,1009,1],[1012,0,1012,5],[1013,0,1014,0],[1013,1,1014,1],[1013,2,1013,3],[1013,4,1013,5],[0,0,0,1],[1,0,1,2],[2,0,2,2],[5,0,5,5],[6,0,7,0],[6,1,7,1],[6,2,6,3],[6,4,6,5]]}
["Ministerstvo školství, mládeže a tělovýchovy  "]
["Program LX-PZP-2023: příloha 1 - Ukazatele 53-55"]
[]
[]
["LX22NPO510x"]
["(č. 53) Modernizace a renovace prostorových výzkumných kapacit"]
["Zkratka názvu účastníka projektu","Identifikace prostoru dle odpovídající položky v příloze 10 \"Název + popis (pokud není jednoznačné z názvu)\"","Výchozí stav v době zahájení projektu v roce 2022",null,"Změna oproti výchozímu stavu"]
[null,null,"Plocha (m2)","Kapacita","Plocha (m2)","Kapacita"]
[]
[]
[]
[]
[]
[]
[]
[]
[]
[]
[]
[]
[]
[]
[]
[]
[]
[]
[]
[]
[]
[]
[]
[]
[]
[]
[]
[]
[]
[]
[]
[]
[]
[]
[]
[]
[]
[]
[]
[]
[]
[]
[]
[]
[]
[]
[]
[]
[]
[]
[]
[]
[]
[]
[]
[]
[]
[]
[]
[]
[]
[]
[]
[]
[]
[]
[]
[]
[]
[]
[]
[]
[]
[]
[]
[]
[]
[]
[]
[]
[]
[]
[]
[]
[]
[]
[]
[]
[]
[]
[]
[]
[]
[]
[]
[]
[]
[]
[]
[]
[]
[]
[]
[]
[]
[]
[]
[]
[]
[]
[]
[]
[]
[]
[]
[]
[]
[]
[]
[]
[]
[]
[]
[]
[]
[]
[]
[]
[]
[]
[]
[]
[]
[]
[]
[]
[]
[]
[]
[]
[]
[]
[]
[]
[]
[]
[]
[]
[]
[]
[]
[]
[]
[]
[]
[]
[]
[]
[]
[]
[]
[]
[]
[]
[]
[]
[]
[]
[]
[]
[]
[]
[]
[]
[]
[]
[]
[]
[]
[]
[]
[]
[]
[]
[]
[]
[]
[]
[]
[]
[]
[]
[]
[]
[]
[]
[]
[]
[]
[]
[]
[]
[]
[]
[]
[]
[]
[]
[]
[]
[]
[]
[]
[]
[]
[]
[]
[]
[]
[]
[]
[]
[]
[]
[]
[]
[]
[]
[]
[]
[]
[]
[]
[]
[]
[]
[]
[]
[]
[]
[]
[]
[]
[]
[]
[]
[]
[]
[]
[]
[]
[]
[]
[]
[]
[]
[]
[]
[]
[]
[]
[]
[]
[]
[]
[]
[]
[]
[]
[]
[]
[]
[]
[]
[]
[]
[]
[]
[]
[]
[]
[]
[]
[]
[]
[]
[]
[]
[]
[]
[]
[]
[]
[]
[]
[]
[]
[]
[]
[]
[]
[]
[]
[]
[]
[]
[]
[]
[]
[]
[]
[]
[]
[]
[]
[]
[]
[]
[]
[]
[]
[]
[]
[]
[]
[]
[]
[]
[]
[]
[]
[]
[]
[]
[]
[]
[]
[]
[]
[]
[]
[]
[]
[]
[]
[]
[]
[]
[]
[]
[]
[]
[]
[]
[]
[]
[]
[]
[]
[]
[]
[]
[]
[]
[]
[]
[]
[]
[]
[]
[]
[]
[]
[]
[]
[]
[]
[]
[]
[]
[]
[]
[]
[]
[]
[]
[]
[]
[]
[]
[]
[]
[]
[]
[]
[]
[]
[]
[]
[]
[]
[]
[]
[]
[]
[]
[]
[]
[]
[]
[]
[]
[]
[]
[]
[]
[]
[]
[]
[]
[]
[]
[]
[]
[]
[]
[]
[]
[]
[]
[]
[]
[]
[]
[]
[]
[]
[]
[]
[]
[]
[]
[]
[]
[]
[]
[]
[]
[]
[]
[]
[]
[]
[]
[]
[]
[]
[]
[]
[]
[]
[]
[]
[]
[]
[]
[]
[]
[]
[]
[]
[]
[]
[]
[]
[]
[]
[]
[]
[]
[]
[]
[]
[]
[]
[]
[]
[]
[]
[]
[]
[]
[]
[]
[]
[]
[]
[]
[]
[]
[]
[]
[]
[]
[]
[]
[]
[]
[]
[]
[]
[]
[]
[]
[]
[]
[]
[]
[]
[]
[]
[]
[]
[]
[]
[]
[]
[]
[]
[]
[]
[]
[]
[]
[]
[]
[]
[]
[]
[]
[]
[]
[]
[]
[]
[]
[]
[]
[]
[]
[]
[]
[]
[]
[]
[]
[]
[]
[]
[]
[]
[]
[]
[]
[]
[]
[]
[]
[]
[]
[]
[]
[]
[]
[]
[]
[]
[]
[]
[]
[]
[]
[]
[]
[]
[]
[]
[]
[]
[]
[]
[]
[]
[]
[]
[]
[]
[]
[]
[]
[]
[]
[]
[]
[]
[]
[]
[]
[]
[]
[]
[]
[]
[]
[]
[]
[]
[]
[]
[]
[]
[]
[]
[]
[]
[]
[]
[]
[]
[]
[]
[]
[]
[]
[]
[]
[]
[]
[]
[]
[]
[]
[]
[]
[]
[]
[]
[]
[]
[]
[]
[]
[]
[]
[]
[]
[]
[]
[]
[]
[]
[]
[]
[]
[]
[]
[]
[]
[]
[]
[]
[]
[]
[]
[]
[]
[]
[]
[]
[]
[]
[]
[]
[]
[]
[]
[]
[]
[]
[]
[]
[]
[]
[]
[]
[]
[]
[]
[]
[]
[]
[]
[]
[]
[]
[]
[]
[]
[]
[]
[]
[]
[]
[]
[]
[]
[]
[]
[]
[]
[]
[]
[]
[]
[]
[]
[]
[]
[]
[]
[]
[]
[]
[]
[]
[]
[]
[]
[]
[]
[]
[]
[]
[]
[]
[]
[]
[]
[]
[]
[]
[]
[]
[]
[]
[]
[]
[]
[]
[]
[]
[]
[]
[]
[]
[]
[]
[]
[]
[]
[]
[]
[]
[]
[]
[]
[]
[]
[]
[]
[]
[]
[]
[]
[]
[]
[]
[]
[]
[]
[]
[]
[]
[]
[]
[]
[]
[]
[]
[]
[]
[]
[]
[]
[]
[]
[]
[]
[]
[]
[]
[]
[]
[]
[]
[]
[]
[]
[]
[]
[]
[]
[]
[]
[]
[]
[]
[]
[]
[]
[]
[]
[]
[]
[]
[]
[]
[]
[]
[]
[]
[]
[]
[]
[]
[]
[]
[]
[]
[]
[]
[]
[]
[]
[]
[]
[]
[]
[]
[]
[]
[]
[]
[]
[]
[]
[]
[]
[]
[]
[]
[]
[]
[]
[]
[]
[]
[]
[]
[]
[]
[]
[]
[]
[]
[]
[]
[]
[]
[]
[]
[]
[]
[]
[]
[]
[]
[]
[]
[]
[]
[]
[]
[]
[]
[]
[]
[]
[]
[]
[]
[]
[]
[]
[]
[]
[]
[]
[]
[]
[]
[]
[]
[]
[]
[]
[]
[]
[]
[]
[]
[]
[]
[]
[]
[]
[]
[]
[]
[]
[]
[]
[]
[]
[]
[]
[]
[]
[]
[]
[]
[]
[]
[]
[]
[]
[]
[]
[]
[]
[]
[]
[]
[]
[]
[]
[]
[]
[]
[]
[]
[]
[]
[]
[]
[]
[]
[]
[]
[]
[]
[]
[]
[]
[]
[]
[]
[]
[]
[]
[]
[]
[]
[]
[]
[]
[]
[]
[]
[]
[]
["Celkem",null,{"$f":"SUM(C9:C1009)","v":0},{"$f":"SUM(D9:D1009)","v":0},{"$f":"SUM(E9:E1009)","v":0},{"$f":"SUM(F9:F1009)","v":0}]
[]
[]
["(č. 54) Modernizace výzkumných zařízení a přístrojů"]
["Zkratka názvu účastníka projektu","Identifikace výzkumného zařízení / přístroje dle odpovídající položky v příloze 10 \"Název + popis (pokud není jednoznačné z názvu)\"","Výchozí stav v době zahájení projektu v roce 2022",null,"Změna oproti výchozímu stavu"]
[null,null,"Počet","Kapacita","Počet","Kapacita"]
[]
[]
[]
[]
[]
[]
[]
[]
[]
[]
[]
[]
[]
[]
[]
[]
[]
[]
[]
[]
[]
[]
[]
[]
[]
[]
[]
[]
[]
[]
[]
[]
[]
[]
[]
[]
[]
[]
[]
[]
[]
[]
[]
[]
[]
[]
[]
[]
[]
[]
[]
[]
[]
[]
[]
[]
[]
[]
[]
[]
[]
[]
[]
[]
[]
[]
[]
[]
[]
[]
[]
[]
[]
[]
[]
[]
[]
[]
[]
[]
[]
[]
[]
[]
[]
[]
[]
[]
[]
[]
[]
[]
[]
[]
[]
[]
[]
[]
[]
[]
[]
[]
[]
[]
[]
[]
[]
[]
[]
[]
[]
[]
[]
[]
[]
[]
[]
[]
[]
[]
[]
[]
[]
[]
[]
[]
[]
[]
[]
[]
[]
[]
[]
[]
[]
[]
[]
[]
[]
[]
[]
[]
[]
[]
[]
[]
[]
[]
[]
[]
[]
[]
[]
[]
[]
[]
[]
[]
[]
[]
[]
[]
[]
[]
[]
[]
[]
[]
[]
[]
[]
[]
[]
[]
[]
[]
[]
[]
[]
[]
[]
[]
[]
[]
[]
[]
[]
[]
[]
[]
[]
[]
[]
[]
[]
[]
[]
[]
[]
[]
[]
[]
[]
[]
[]
[]
[]
[]
[]
[]
[]
[]
[]
[]
[]
[]
[]
[]
[]
[]
[]
[]
[]
[]
[]
[]
[]
[]
[]
[]
[]
[]
[]
[]
[]
[]
[]
[]
[]
[]
[]
[]
[]
[]
[]
[]
[]
[]
[]
[]
[]
[]
[]
[]
[]
[]
[]
[]
[]
[]
[]
[]
[]
[]
[]
[]
[]
[]
[]
[]
[]
[]
[]
[]
[]
[]
[]
[]
[]
[]
[]
[]
[]
[]
[]
[]
[]
[]
[]
[]
[]
[]
[]
[]
[]
[]
[]
[]
[]
[]
[]
[]
[]
[]
[]
[]
[]
[]
[]
[]
[]
[]
[]
[]
[]
[]
[]
[]
[]
[]
[]
[]
[]
[]
[]
[]
[]
[]
[]
[]
[]
[]
[]
[]
[]
[]
[]
[]
[]
[]
[]
[]
[]
[]
[]
[]
[]
[]
[]
[]
[]
[]
[]
[]
[]
[]
[]
[]
[]
[]
[]
[]
[]
[]
[]
[]
[]
[]
[]
[]
[]
[]
[]
[]
[]
[]
[]
[]
[]
[]
[]
[]
[]
[]
[]
[]
[]
[]
[]
[]
[]
[]
[]
[]
[]
[]
[]
[]
[]
[]
[]
[]
[]
[]
[]
[]
[]
[]
[]
[]
[]
[]
[]
[]
[]
[]
[]
[]
[]
[]
[]
[]
[]
[]
[]
[]
[]
[]
[]
[]
[]
[]
[]
[]
[]
[]
[]
[]
[]
[]
[]
[]
[]
[]
[]
[]
[]
[]
[]
[]
[]
[]
[]
[]
[]
[]
[]
[]
[]
[]
[]
[]
[]
[]
[]
[]
[]
[]
[]
[]
[]
[]
[]
[]
[]
[]
[]
[]
[]
[]
[]
[]
[]
[]
[]
[]
[]
[]
[]
[]
[]
[]
[]
[]
[]
[]
[]
[]
[]
[]
[]
[]
[]
[]
[]
[]
[]
[]
[]
[]
[]
[]
[]
[]
[]
[]
[]
[]
[]
[]
[]
[]
[]
[]
[]
[]
[]
[]
[]
[]
[]
[]
[]
[]
[]
[]
[]
[]
[]
[]
[]
[]
[]
[]
[]
[]
[]
[]
[]
[]
[]
[]
[]
[]
[]
[]
[]
[]
[]
[]
[]
[]
[]
[]
[]
[]
[]
[]
[]
[]
[]
[]
[]
[]
[]
[]
[]
[]
[]
[]
[]
[]
[]
[]
[]
[]
[]
[]
[]
[]
[]
[]
[]
[]
[]
[]
[]
[]
[]
[]
[]
[]
[]
[]
[]
[]
[]
[]
[]
[]
[]
[]
[]
[]
[]
[]
[]
[]
[]
[]
[]
[]
[]
[]
[]
[]
[]
[]
[]
[]
[]
[]
[]
[]
[]
[]
[]
[]
[]
[]
[]
[]
[]
[]
[]
[]
[]
[]
[]
[]
[]
[]
[]
[]
[]
[]
[]
[]
[]
[]
[]
[]
[]
[]
[]
[]
[]
[]
[]
[]
[]
[]
[]
[]
[]
[]
[]
[]
[]
[]
[]
[]
[]
[]
[]
[]
[]
[]
[]
[]
[]
[]
[]
[]
[]
[]
[]
[]
[]
[]
[]
[]
[]
[]
[]
[]
[]
[]
[]
[]
[]
[]
[]
[]
[]
[]
[]
[]
[]
[]
[]
[]
[]
[]
[]
[]
[]
[]
[]
[]
[]
[]
[]
[]
[]
[]
[]
[]
[]
[]
[]
[]
[]
[]
[]
[]
[]
[]
[]
[]
[]
[]
[]
[]
[]
[]
[]
[]
[]
[]
[]
[]
[]
[]
[]
[]
[]
[]
[]
[]
[]
[]
[]
[]
[]
[]
[]
[]
[]
[]
[]
[]
[]
[]
[]
[]
[]
[]
[]
[]
[]
[]
[]
[]
[]
[]
[]
[]
[]
[]
[]
[]
[]
[]
[]
[]
[]
[]
[]
[]
[]
[]
[]
[]
[]
[]
[]
[]
[]
[]
[]
[]
[]
[]
[]
[]
[]
[]
[]
[]
[]
[]
[]
[]
[]
[]
[]
[]
[]
[]
[]
[]
[]
[]
[]
[]
[]
[]
[]
[]
[]
[]
[]
[]
[]
[]
[]
[]
[]
[]
[]
[]
[]
[]
[]
[]
[]
[]
[]
[]
[]
[]
[]
[]
[]
[]
[]
[]
[]
[]
[]
[]
[]
[]
[]
[]
[]
[]
[]
[]
[]
[]
[]
[]
[]
[]
[]
[]
[]
[]
[]
[]
[]
[]
[]
[]
[]
[]
[]
[]
[]
[]
[]
[]
[]
[]
[]
[]
[]
[]
[]
[]
[]
[]
[]
[]
[]
[]
[]
[]
[]
[]
[]
[]
[]
[]
[]
[]
[]
[]
[]
[]
[]
[]
[]
[]
[]
[]
[]
[]
[]
[]
[]
[]
[]
[]
[]
[]
[]
[]
[]
[]
[]
[]
[]
[]
[]
[]
[]
[]
[]
[]
[]
[]
[]
[]
[]
[]
[]
[]
[]
[]
[]
[]
[]
[]
[]
[]
[]
[]
[]
[]
[]
[]
[]
[]
[]
[]
[]
[]
[]
["Celkem",null,{"$f":"SUM(C1016:C2016)","v":0},{"$f":"SUM(D1016:D2016)","v":0},0,0]
[]
[]
["(č. 55) Modernizace informační a digitalizační infrastruktury výzkumu."]
["Zkratka názvu účastníka projektu","Identifikace dotčené infrastruktury dle odpovídající položky v příloze 10 \"Název + popis (pokud není jednoznačné z názvu)\"","Výchozí stav v době zahájení projektu v roce 2022",null,"Změna oproti výchozímu stavu"]
[null,null,"Počet","Kapacita","Počet","Kapacita"]
[]
[]
[]
[]
[]
[]
[]
[]
[]
[]
[]
[]
[]
[]
[]
[]
[]
[]
[]
[]
[]
[]
[]
[]
[]
[]
[]
[]
[]
[]
[]
[]
[]
[]
[]
[]
[]
[]
[]
[]
[]
[]
[]
[]
[]
[]
[]
[]
[]
[]
[]
[]
[]
[]
[]
[]
[]
[]
[]
[]
[]
[]
[]
[]
[]
[]
[]
[]
[]
[]
[]
[]
[]
[]
[]
[]
[]
[]
[]
[]
[]
[]
[]
[]
[]
[]
[]
[]
[]
[]
[]
[]
[]
[]
[]
[]
[]
[]
[]
[]
[]
[]
[]
[]
[]
[]
[]
[]
[]
[]
[]
[]
[]
[]
[]
[]
[]
[]
[]
[]
[]
[]
[]
[]
[]
[]
[]
[]
[]
[]
[]
[]
[]
[]
[]
[]
[]
[]
[]
[]
[]
[]
[]
[]
[]
[]
[]
[]
[]
[]
[]
[]
[]
[]
[]
[]
[]
[]
[]
[]
[]
[]
[]
[]
[]
[]
[]
[]
[]
[]
[]
[]
[]
[]
[]
[]
[]
[]
[]
[]
[]
[]
[]
[]
[]
[]
[]
[]
[]
[]
[]
[]
[]
[]
[]
[]
[]
[]
[]
[]
[]
[]
[]
[]
[]
[]
[]
[]
[]
[]
[]
[]
[]
[]
[]
[]
[]
[]
[]
[]
[]
[]
[]
[]
[]
[]
[]
[]
[]
[]
[]
[]
[]
[]
[]
[]
[]
[]
[]
[]
[]
[]
[]
[]
[]
[]
[]
[]
[]
[]
[]
[]
[]
[]
[]
[]
[]
[]
[]
[]
[]
[]
[]
[]
[]
[]
[]
[]
[]
[]
[]
[]
[]
[]
[]
[]
[]
[]
[]
[]
[]
[]
[]
[]
[]
[]
[]
[]
[]
[]
[]
[]
[]
[]
[]
[]
[]
[]
[]
[]
[]
[]
[]
[]
[]
[]
[]
[]
[]
[]
[]
[]
[]
[]
[]
[]
[]
[]
[]
[]
[]
[]
[]
[]
[]
[]
[]
[]
[]
[]
[]
[]
[]
[]
[]
[]
[]
[]
[]
[]
[]
[]
[]
[]
[]
[]
[]
[]
[]
[]
[]
[]
[]
[]
[]
[]
[]
[]
[]
[]
[]
[]
[]
[]
[]
[]
[]
[]
[]
[]
[]
[]
[]
[]
[]
[]
[]
[]
[]
[]
[]
[]
[]
[]
[]
[]
[]
[]
[]
[]
[]
[]
[]
[]
[]
[]
[]
[]
[]
[]
[]
[]
[]
[]
[]
[]
[]
[]
[]
[]
[]
[]
[]
[]
[]
[]
[]
[]
[]
[]
[]
[]
[]
[]
[]
[]
[]
[]
[]
[]
[]
[]
[]
[]
[]
[]
[]
[]
[]
[]
[]
[]
[]
[]
[]
[]
[]
[]
[]
[]
[]
[]
[]
[]
[]
[]
[]
[]
[]
[]
[]
[]
[]
[]
[]
[]
[]
[]
[]
[]
[]
[]
[]
[]
[]
[]
[]
[]
[]
[]
[]
[]
[]
[]
[]
[]
[]
[]
[]
[]
[]
[]
[]
[]
[]
[]
[]
[]
[]
[]
[]
[]
[]
[]
[]
[]
[]
[]
[]
[]
[]
[]
[]
[]
[]
[]
[]
[]
[]
[]
[]
[]
[]
[]
[]
[]
[]
[]
[]
[]
[]
[]
[]
[]
[]
[]
[]
[]
[]
[]
[]
[]
[]
[]
[]
[]
[]
[]
[]
[]
[]
[]
[]
[]
[]
[]
[]
[]
[]
[]
[]
[]
[]
[]
[]
[]
[]
[]
[]
[]
[]
[]
[]
[]
[]
[]
[]
[]
[]
[]
[]
[]
[]
[]
[]
[]
[]
[]
[]
[]
[]
[]
[]
[]
[]
[]
[]
[]
[]
[]
[]
[]
[]
[]
[]
[]
[]
[]
[]
[]
[]
[]
[]
[]
[]
[]
[]
[]
[]
[]
[]
[]
[]
[]
[]
[]
[]
[]
[]
[]
[]
[]
[]
[]
[]
[]
[]
[]
[]
[]
[]
[]
[]
[]
[]
[]
[]
[]
[]
[]
[]
[]
[]
[]
[]
[]
[]
[]
[]
[]
[]
[]
[]
[]
[]
[]
[]
[]
[]
[]
[]
[]
[]
[]
[]
[]
[]
[]
[]
[]
[]
[]
[]
[]
[]
[]
[]
[]
[]
[]
[]
[]
[]
[]
[]
[]
[]
[]
[]
[]
[]
[]
[]
[]
[]
[]
[]
[]
[]
[]
[]
[]
[]
[]
[]
[]
[]
[]
[]
[]
[]
[]
[]
[]
[]
[]
[]
[]
[]
[]
[]
[]
[]
[]
[]
[]
[]
[]
[]
[]
[]
[]
[]
[]
[]
[]
[]
[]
[]
[]
[]
[]
[]
[]
[]
[]
[]
[]
[]
[]
[]
[]
[]
[]
[]
[]
[]
[]
[]
[]
[]
[]
[]
[]
[]
[]
[]
[]
[]
[]
[]
[]
[]
[]
[]
[]
[]
[]
[]
[]
[]
[]
[]
[]
[]
[]
[]
[]
[]
[]
[]
[]
[]
[]
[]
[]
[]
[]
[]
[]
[]
[]
[]
[]
[]
[]
[]
[]
[]
[]
[]
[]
[]
[]
[]
[]
[]
[]
[]
[]
[]
[]
[]
[]
[]
[]
[]
[]
[]
[]
[]
[]
[]
[]
[]
[]
[]
[]
[]
[]
[]
[]
[]
[]
[]
[]
[]
[]
[]
[]
[]
[]
[]
[]
[]
[]
[]
[]
[]
[]
[]
[]
[]
[]
[]
[]
[]
[]
[]
[]
[]
[]
[]
[]
[]
[]
[]
[]
[]
[]
[]
[]
[]
[]
[]
[]
[]
[]
[]
[]
[]
[]
[]
[]
[]
[]
[]
[]
[]
[]
[]
[]
[]
[]
[]
[]
[]
[]
[]
[]
[]
[]
[]
[]
[]
[]
[]
[]
[]
[]
[]
[]
[]
[]
[]
[]
[]
[]
[]
[]
[]
[]
[]
[]
[]
[]
[]
[]
[]
[]
[]
[]
[]
[]
[]
[]
[]
[]
[]
[]
[]
[]
[]
[]
[]
[]
[]
[]
[]
[]
[]
[]
[]
[]
[]
[]
[]
[]
[]
[]
[]
[]
[]
[]
[]
[]
[]
[]
[]
[]
[]
[]
[]
[]
[]
[]
[]
[]
[]
[]
[]
["Celkem",null,{"$f":"SUM(C2023:C3023)","v":0},{"$f":"SUM(D2023:D3023)","v":0},0,0]

{"sheet":"spolecne_ukazatele","index":4,"n_rows":99,"n_cols":8,"rows_kept":99,"cut":false,"hidden":false,"merged":[[1,0,1,2],[2,0,2,2],[0,0,0,2]]}
["Ministerstvo školství, mládeže a tělovýchovy  "]
["Program LX-PZP-2023: příloha 1 - Společné ukazatele "]
[]
[]
["LX22NPO510x"]
["Společné ukazatele"]
["Formulář pro vykazování společných ukazatelů byl připraven v jazyce, ve kterém se předává Evropské komisi. Vysvětlení k metodice výpočtu a potřebné definice najdete pod tabulkou. U ukazatele 10 jsme přidali 3 (zeleně podbarvená) pole pro případ, že nemáte dostatečné informace pro vyplnění věkových a genderových kategorií."]
["V PZP-2023 můžete u ukazatelů označených jako \"Stock\" předpokládat nulovou počáteční hodnotu. V příštích letech bude potřeba reflektovat předchozí hodnoty."]
["Vyplňte prosím jen takto podbarvená pole."]
[]
["Evaluation period:"]
[]
["ID of the indicator","Description of the indicator","Definition","Counting methodology","Indicator type (baseline for counting)","Units","Value","Poznámka ze strany administrace MŠMT"]
["RRFCI01","Savings in annual primary energy consumption","Total annual primary energy consumption reduction for supported entities due to support from measures under the Facility. The value reported is the primary energy consumption savings (expressed in annual terms) due to measures supported by the RRF and implemented during the reporting period. The aim is to be able to assess the savings that can be achieved on an annual basis thanks to the RRF. For buildings, interventions shall be sufficiently documented to be able to calculate these values, for example by using Energy Performance Certificates or other monitoring systems respecting the criteria as set in Article 10.6 of the Energy Performance of Building Directive. For processes in enterprises, the annual primary energy consumption shall be documented based on energy audits in line with Article 8 of the Energy Efficiency Directive (2012/27/EU), or other relevant technical specifications. Public buildings shall be defined as buildings owned by public authorities and buildings owned by a non-profit organisation, provided that such bodies pursue objectives of general interest such as education, health, environment and transport. Examples include building for public administration, schools, hospitals etc. ","The achieved value should be calculated by subtracting the energy consumption before the intervention by the new energy consumption (either estimated or real) after the intervention. Energy savings of a renovated unit shall only be counted once, upon finalisation of the intervention.  Time measurement: Upon completion of output and issuance of the energy performance certificate, energy audit or other relevant technical specification (as defined in the general principles).","Stock: baseline is initially 0, subsequently adjusted to the achieved value of the previous reporting round","MWh/year"]
["RRFCI02","Additional operational capacity installed for renewable energy","Additional capacity installed for renewable energy due to the support from measures under the Facility, and which is operational (i.e. connected to the grid, if applicable, and fully ready to produce or already producing energy). The value reported is the number produced over the reporting period in addition to the number reported in the previous reporting round. Production capacity shall be defined as the “net maximum electrical capacity” as defined by Eurostat as “the maximum active power that can be supplied, continuously, with all plant running, at the point of outlet (i.e. after taking the power supplies for the station auxiliaries and allowing for the losses in those transformers considered integral to the station)”. Renewable energy shall be defined as \"energy from renewable non-fossil sources namely wind, solar (thermal and photovoltaic) and geothermal energy, ambient energy, tide, wave and other ocean energy, hydropower, biomass, landfill gas, sewage treatment plant gas, and biogas\" in line with Article 2(1) of Directive (EU) 2018/2001. The indicator shall also capture electrolyser capacity for green hydrogen production built up with support by measures under the Facility. ","Time measurement: As soon as the production capacity is operational (i.e. ready to produce or already producing energy) as defined in the general principles. ","Stock: baseline is initially 0, subsequently adjusted to the achieved value of the previous reporting round","MW",{"$f":"SUM(G16:G17)","v":0}]
[null,"Capacity for renewable energy production",null,null,null,"MW"]
[null,"Electrolyser capacity for hydrogen production",null,null,null,"MW"]
["RRFCI03","Alternative fuels infrastructure (refuelling/recharging points)","Number of refuelling/recharging points (new or upgraded) for clean vehicles supported by measures under the Facility. The value reported is the number produced over the reporting period in addition to the number reported in the previous reporting round. A recharging point shall be defined as an interface that is capable of charging one electric vehicle at a time or exchanging a battery of one electric vehicle at a time. A refuelling point shall refer to a refuelling facility for the provision of alternative fuel through a fixed or a mobile installation. Alternative fuel shall be defined to include fuels or power sources which serve, at least partly, as a substitute for fossil oil sources in the energy supply to transport and which have the potential to contribute to its decarbonisation and enhance the environmental performance of the transport sector and that are in line with Directive 2018/2001.","Time measurement: The refuelling/recharging point shall be counted as soon it is operational (i.e. ready to produce or already producing energy) as defined in the general principles. ","Stock: baseline is initially 0, subsequently adjusted to the achieved value of the previous reporting round","Refuelling/recharging points",{"$f":"SUM(G19:G21)","v":0}]
[null,"Hydrogen refuelling points",null,null,null,"Refuelling/recharging points"]
[null,"Refuelling points",null,"Refuelling points without hydrogen refuelling points.",null,"Refuelling/recharging points"]
[null,"Recharging points",null,null,null,"Refuelling/recharging points"]
["RRFCI04","Population benefiting from protection measures against floods, wildfires, and other climate related natural disasters","Number of persons living in areas where protection infrastructure (including green infrastructure and nature-based solutions for adaptation to climate change) is built or significantly upgraded due to support by measures under the Facility in order to reduce vulnerability to flood, wildfire and other climate related natural risks (storms, droughts, heatwaves). For wildfire and other climate related natural risks, the indicator shall cover protection measures, which are clearly localised in high risk areas and which address directly the specific risks, as opposed to more general measures implemented at national or regional level. For floods, the indicator shall count the resident population at risk. The value reported is the number of persons that are living in an area where infrastructure has been built or significantly been upgraded during the reporting period, in addition to the number reported in the previous reporting round. ","This should be reported for each new infrastructure, regardless of whether it contributes to protecting the same population as another supported infrastructure, since the same population can be subjected to multiple risks. Time measurement: The number of person shall be counted upon the date the infrastructure supported by the measures under the Facility is operational (as defined in the general principles). ","Stock: baseline is initially 0, subsequently adjusted to the achieved value of the previous reporting round","Persons"]
["RRFCI05","Additional dwellings with internet access provided via very high capacity networks","Total number of dwellings with access to very high capacity networks, as defined in the BEREC Guidelines on Very High Capacity Networks (BoR (20) 165) that only had access to slower connections or did not have internet access at all before the support by measures under the Facility. As such, it shall also consider 5G network coverage and upgrades to gigabit speed. The improved internet access must be a direct consequence of the support by measures under the Facility. The indicator shall measure dwellings with the possibility to access and not the actual take up. Possibility to access means that the service is accessible to the dwelling, notwithstanding whether they subscribe to it or not. A dwelling shall be defined as \"a room or a suite of rooms in a permanent building or a structurally separated part of a building which (...) is designed for habitation by one private household all year around\" (see Commission (Eurostat)). This shall not be understood as counting the number of rooms of dwellings, but rather that each  dwelling is an entity that can contain a household, irrespective of the number of rooms. All private dwellings from studio flats to mansions are covered. ","The indicator does not count collective dwellings such as hospitals, old peoples' homes, residential homes, prisons, military barracks, religious institutions, boarding houses, workers' hostels etc. Time measurement: Dwellings shall be counted upon the date they get access to a very high capacity network supported by the measures under the Facility (as defined in the general principles).","Stock: baseline is initially 0, subsequently adjusted to the achieved value of the previous reporting round","Dwellings"]
["RRFCI06","Enterprises supported to develop or adopt digital products, services and application processes","Number of enterprises supported to develop or adopt new or significantly upgraded services, products and processes based on digital technologies, due to support by measures under the Facility. This includes advanced digital technologies such as, but not limited to, automation, artificial intelligence, cybersecurity, block chain, cloud and edge infrastructures and data spaces, quantum and high performance computing. Significant upgrades shall cover only new functionalities. ","An enterprise shall be counted per support scheme, even if it lasts several years. An enterprise supported under two different digitalisation schemes should be counted twice – once per digitalisation scheme (as defined in the general principles). It is understood that this indicator is a subset of indicator 9, in the sense that the number reported under this indicator should always be smaller than the number reported under indicator 9. Time measurement: Enterprises shall be counted upon the date they receive support by the measures under the Facility (as defined in the general principles).","Flow: baseline is 0, reset every reporting round","Enterprises",{"$f":"SUM(G25:G30)","v":0}]
[null,"Large enterprises supported to adopt digital products",null,null,null,"Enterprises"]
[null,"Large enterprises supported to develop digital products",null,null,null,"Enterprises"]
[null,"Medium enterprises supported to adopt digital products",null,null,null,"Enterprises"]
[null,"Medium enterprises supported to develop digital products",null,null,null,"Enterprises"]
[null,"Micro & small enterprises supported to adopt digital products",null,null,null,"Enterprises"]
[null,"Micro & small enterprises supported to develop digital products",null,null,null,"Enterprises"]
["RRFCI07","Users of new and upgraded public digital services, products and processes","Number of users of the digital public services, products and processes newly developed or significantly upgraded through support by measures under the Facility. Significant upgrades shall cover only new functionalities. Users refer to the clients of the public services and products newly developed or upgraded through support by measures under the Facility, and to the staff of the public institution using the digital processes newly developed or significantly upgraded through support by measures under the Facility.","When reporting takes place more than once a year, Member States should report the number of users for the reporting period covered up to the cut-off date. The data per year will be calculated by the Commission. Counting the same user of an online service several times shall not be considered as double counting[, whether individual users can be identified or not]. Users of a new/upgraded service should be counted over the period of implementation of the plan in order to capture the uptake. Time measurement: Upon first connection to the service (as defined in the general principles). ","Flow: baseline is 0, reset every reporting round","Users/year"]
["RRFCI08","Researchers working in supported research facilities","Number of researchers using directly, in their line of activity, the public or private research facility or the equipment for which support by measures under the Facility is awarded. The indicator shall be measured in terms of annual full time equivalents (FTEs), calculated according to the methodology provided in the OECD Frascati Manual 2015. The support must improve the research facility or the quality of research equipment. Replacements without quality increase shall be excluded, as is maintenance. Annual FTE of R&D personnel shall be defined as the ratio of working hours actually spent on R&D during a calendar year divided by the total number of hours conventionally worked in the same period by an individual or a group. Therefore, every reporting period Member States should compute the number of hours researchers spent working in the supported facility/using the supported equipment and divide this number by the total number of hours conventionally worked in the same period.","The R&D vacant positions shall not be counted, neither support staff for R&D (i.e. posts not directly involved in R&D activities). By convention a person cannot perform more than one FTE on R&D on a biannual basis. The number of hours conventionally worked shall be determined on the basis of normative/statutory working hours. A full time person shall be identified with reference to their employment status, the type of contract (full time or part time) and their level of engagement in R&D (see OECD Frascati Manual 2015, Chapter 5.3). One research post (FTE) can only be counted once per reporting period. A researcher (FTE) occupying a post with a multiple year contract should be counted once per reporting period.  Time measurement: Researchers (FTE) shall be counted upon the date their facility or equipment receives support by the measures under the Facility (as defined in the general principles). ","Flow: baseline is 0, reset every reporting round","Annual Full Time Equivalent",{"$f":"SUM(G33:G34)","v":0},"Sčítejte jen zaměstnance vykázané jako řešitel, spoluřešitel, výzkumník, juniorní výzkumník (jiný než student) a student doktorského programu, kteří mají uzavřenu pracovní smlouvu nebo pracují na základě dohod o pracích konaných mimo pracovní poměr."]
[null,"Men",null,null,null,"Annual Full Time Equivalent"]
[null,"Women",null,null,null,"Annual Full Time Equivalent"]
["RRFCI09","Enterprises supported (of which small – including micro, medium, large)","The indicator shall count all enterprises that receive monetary or in-kind support by measures under the Facility (as defined in the general principles).","An enterprise shall be counted per support scheme, even if it lasts several years. An enterprise supported under two different support schemes should be counted twice – once per support scheme (as defined in the general principles). It is understood that this indicator encompasses indicator 6. The number reported under this indicator should always exceed the one reporting under indicator 6. Time measurement: Enterprises shall be counted upon the date they receive support by the measures under the Facility. ","Flow: baseline is 0, reset every reporting round","Enterprises",{"$f":"SUM(G36:G38)","v":0}]
[null,"Large enterprises",null,null,null,"Enterprises"]
[null,"Medium enterprises",null,null,null,"Enterprises"]
[null,"Micro & small enterprises",null,null,null,"Enterprises"]
["RRFCI10","Number of participants in education or training","The indicator shall take into account the number of newly engaged participants to education (ISCED 0-6, ISCED 7-8, adult learning) and training (off-the-job/in-the-job training, continuous vocational education and training, etc.) activities supported by measures under the Facility, including participants to digital skills trainings. It shall therefore be collected and reported on by i) participants in education or training, and of those, ii) participants in digital skills training.  “Newly engaged” means that in case of education or training programme that already existed and have been improved by the RRF, only participants joining after the RRF support shall be counted. In line with Annex VII of the RRF Regulation displaying the digital tagging under the Facility, digital skills training is to be understood within the meaning of intervention field 108 (Support for the development of digital skills), which states: “This refers to digital skills at all levels and includes: highly specialized education programmes to train digital specialists (that is technology focused programmes); training of teachers, development of digital content for education purposes and relevant organisational capabilities. This also includes measures and programmes aimed at improving basic digital skills.” ","Participation shall be counted per education or training activity, even if it lasts several years. Additionally, a participant to two different education or training activities should be counted twice – once per training or education activity (as defined in the general principles). Time measurement: Participants shall be counted upon entering the education or training activity in supported projects by the Facility. ","Flow: baseline is 0, reset every reporting round","Persons",{"$f":"SUM(G40:G58)","v":0},"V případě, že nemáte informaci o věku a/nebo genderu účastníků, vyplňte počty osob do přidaných polí (podbarvených zeleně)."]
[null,"Men aged 0-17",null,null,null,"Persons"]
[null,"Participants in digital skills training",null,null,null,"Persons"]
[null,"Men aged 18-29",null,null,null,"Persons"]
[null,"Participants in digital skills training",null,null,null,"Persons"]
[null,"Men aged 30-54",null,null,null,"Persons"]
[null,"Participants in digital skills training",null,null,null,"Persons"]
[null,"Men aged 55 and over",null,null,null,"Persons"]
[null,"Participants in digital skills training",null,null,null,"Persons"]
[null,"Women aged 0-17",null,null,null,"Persons"]
[null,"Participants in digital skills training",null,null,null,"Persons"]
[null,"Women aged 18-29",null,null,null,"Persons"]
[null,"Participants in digital skills training",null,null,null,"Persons"]
[null,"Women aged 30-54",null,null,null,"Persons"]
[null,"Participants in digital skills training",null,null,null,"Persons"]
[null,"Women aged 55 and over",null,null,null,"Persons"]
[null,"Participants in digital skills training",null,null,null,"Persons"]
[null,"Men if age is unknown",null,null,null,"Persons"]
[null,"Women if age is unknown",null,null,null,"Persons"]
[null,"Persons if both (age and gender) are unknown",null,null,null,"Persons"]
["RRFCI11","Number of people in employment or engaged in job searching activities","Unemployed or inactive persons who have received support by measures under the RRF, and who are in employment, including self-employment, or who were inactive when receiving that support and who are newly engaged in job searching activities, immediately after receiving that support. This covers three aggregates: (a) people that previously were in unemployment, received support by measures under the RRF and then changed status to employment; (b) people that previously were outside the labour force (inactive), received support by measures under the RRF and then changed status to employment; (c) people that previously were outside the labour force (inactive), received support by measures under the RRF and then changed status to unemployment. \"Engaged in job searching\" shall be defined to include persons usually without work (i.e. without a job, but potentially engaged in unremunerated work – such as volunteering activities), immediately available for work and actively seeking work (i.e. a job), as per the definition of \"Unemployed\" laid down in the EU regulation for the EU Labour Force Survey.  In addition, persons who have newly registered with the public employment services as jobseeker shall always be counted as engaged in job searching, even if they are not immediately available for work. For the purpose of this guidance “Unemployed” are persons without a job, available for work and engaged in job searching activities. In addition, persons considered as registered unemployed according to national definitions are always included here even if they do not fulfil all three of these criteria. Inactive are persons currently not part of the labour force (in the sense that they are not employed or unemployed according to the definitions provided).","One participant can only be reported once over the reporting period (as defined in the general principles). An individual can however be reported in another reporting period even if it has been reported in a previous one, if the individual has benefited from an additional support from RRF and has transitioned to employment or searching activity. Time measurement: Participant shall be counted upon the starting date of their activity (searching or employment). ","Flow: baseline is 0, reset every reporting round","Persons",{"$f":"SUM(G60:G67)","v":0}]
[null,"Men aged 0-17",null,null,null,"Persons"]
[null,"Men aged 18-29",null,null,null,"Persons"]
[null,"Men aged 30-54",null,null,null,"Persons"]
[null,"Men aged 55 and over",null,null,null,"Persons"]
[null,"Women aged 0-17",null,null,null,"Persons"]
[null,"Women aged 18-29",null,null,null,"Persons"]
[null,"Women aged 30-54",null,null,null,"Persons"]
[null,"Women aged 55 and over",null,null,null,"Persons"]
["RRFCI12","Capacity of new or modernised health care facilities","The maximum annual number of persons that can be served by a new or modernised health care facility due to support by measures under the Facility at least once during a period of one year. Modernisation shall not include energy renovation or maintenance and repairs. Healthcare facilities shall include hospitals, clinics, outpatient care centres, specialized care centres etc.","The capacity of one new or newly modernised medical service or healthcare infrastructure should only be reported once, when it is first operational. Time measurement: When the respective medical services of the new or modernised healthcare infrastructure supported by the Facility are operational (as defined in the general principles).","Stock: baseline is initially 0, subsequently adjusted to the achieved value of the previous reporting round","Persons/year"]
["RRFCI13","Classroom capacity of new or modernised childcare and education facilities","Classroom capacity in terms of the maximum number of places in the new or modernised early childhood education and care and education facilities (ISCED 0-6, ISCED 7-8) due to support by measures under the Facility. Classroom capacity shall be calculated in accordance with national legislation, but it shall not include teachers, parents, auxiliary personnel or any other persons who may also use the facilities. Early childhood education and care facilities such as crèches and pre-schools shall refer to those designed for children from birth to the start of primary education (ISCED 0). Education facilities shall include schools (ISCED 1-3, ISCED 4) and higher education (ISCED 5-6, ISCED 7-8). The indicator shall cover childcare or education facilities that are newly built or modernised (for example, for increasing hygiene and safety standards), and modernisation shall not include energy renovation or maintenance and repairs.","The capacity of one new or newly modernised classroom or education infrastructure should only be reported once, when it is first operational. Time measurement: When the respective classroom of the new or modernised education infrastructure supported by the Facility are operational (as defined in the general principles).","Stock: baseline is initially 0, subsequently adjusted to the achieved value of the previous reporting round","Persons"]
["RRFCI14","Number of young people aged 15-29 receiving support","The number of participants aged 15-29 years old upon receiving monetary or in-kind support by measures under the Facility. Support shall be counted per measure granting support, even if it lasts several years. Additionally, a young person receiving two different supports should be counted twice – once per measure granting support (as defined in the general principles).","A young person shall be counted per support received, even if it lasts several years. Additionally, a young person supported under two different schemes should be counted twice – once per support scheme (as defined in the general principles). It is understood that this indicator could include persons supported under indicators 10 and 11. The numbers reported under the age bracket 18-29 for indicators 10 and 11 should always be smaller than the number reported for this indicator. Time measurement: Participants shall be counted upon the date they receive support by the measures under the Facility (as defined in the general principles).","Flow: baseline is 0, reset every reporting round","Persons",{"$f":"SUM(G71:G72)","v":0},"Sčítejte všechny členy týmu mladší 29 let."]
[null,"Men",null,null,null,"Persons"]
[null,"Women",null,null,null,"Persons"]
[]
[]
["Counting methodology","The aim of the common indicators reporting is to capture the positive impact of the measures. Therefore, the counting should ensure that an entity (person, enterprise) is reported only once per measure for the reporting period, regardless of how many times it receives support or participates in the particular measure under the Facility, except when indicated otherwise in the indicator."]
[null,"E.g.:  for the use of new education facilities; the indicator shall represent the size of the cohort benefiting from the measure, not the frequency of use."]
[null,"However, entities which benefit from different measures under the Facility that pursue different objectives shall be counted separately."]
[null,"E.g.: a person benefitting from two different training programmes supported under two different measures of an RRP, with the objective of one being to improve digital skills and of the other being to train for sustainable farming jobs: Here the same person would be reported twice. "]
[null,"Similarly, the measures (or some of its projects) financed by the Facility may provide support over a long period. In these cases, the entity receiving the support shall be counted once at the first relevant reporting period. "]
[null,"E.g.: participants shall be counted once per education or training activity followed on the reporting period the person started participating, even if it lasts several years. Conversely, a participant to two different education or training activities should be counted twice (once per training or education activity and/or objective)."]
[]
[]
["ISCED","ISCED is the reference international classification for organising education programmes and related qualifications by levels and fields. ISCED 2011 (levels of education) has been implemented in all EU data collections since 2014. ISCED 2011 has nine education levels, from level 0 to level 8 (tertiary education is more detailed):"]
[null,"ISCED 0: Early childhood education (‘less than primary’ for educational attainment)"]
[null,"ISCED 1: Primary education"]
[null,"ISCED 2: Lower secondary education"]
[null,"ISCED 3: Upper secondary education"]
[null,"ISCED 4: Post-secondary non-tertiary education"]
[null,"ISCED 5: Short-cycle tertiary education"]
[null,"ISCED 6: Bachelor’s or equivalent level"]
[null,"ISCED 7: Master’s or equivalent level"]
[null,"ISCED 8: Doctoral or equivalent level"]
[]
[]
["Enterprise size","Definition"]
["Small (including micro)","0-49 employees and self-employed and annual turnover -≤ EUR 10 million or balance sheet - ≤ EUR 10 million"]
["Medium","50-249 employees and self-employed and annual turnover >EUR 10 million - ≤ EUR 50 million or balance sheet > EUR 10 million -≤ EUR 43 million"]
["Large",">250 employees and self-employed and turnover > EUR 50 million or balance sheet > EUR 43 million"]
["Note:","If either of the 2 thresholds (employees and self-employed and annual turnover/balance sheet) is exceeded the enterprises shall be categorised in the size category above; (Commission (Eurostat) based on EC Recommendation 2003/361/EC, Annex, Articles 2-3)."]